Workbook

Sheet RV1106_Board
D1: =UPPER("Bill of Materials") -> BILL OF MATERIALS | J1: Rev:
D2: Cambox_2026 | J2: Production QTY
A3: Customer: | C3: Aithings | D3: HW version: | E3: 5.0 | G3: Checked by: | J3: Date created:
A4: Board code: | C4: CameraBox | D4: Prepared by: | E4: Ducdv | G4: Approved by: | J4: 08/05/2026
E5: Mã Hàng Hóa Ưu Tiên Mua | G5: Mã Hàng Hóa Tham Khảo
A6: STT | B6: Internal Code | C6: Category | D6: Description | E6: Manufacturer | F6: Partnumber | G6: Manufacturer 2 | H6: Manufacturer's Part Number 2 | I6: Designator | J6: QTY / Set | K6: Production quantity | L6: Total Quantity | M6: Unit | N6: Mounting type | O6: Note | P6: EXW Price (USD) | Q6: Total EXW Price (USD) | R6: Supplier | S6: Việc cần làm
A7: 1 | C7: SOM | D7: PCIE-RV1106 PCIE | E7: RONGPIN | F7: PCIE-RV1106 PCIE | I7: SOM | J7: 1 | K7: 1000 | L7: =J7*K7 -> 1000 | M7: pcs | N7: SMD | P7: 24.5 | Q7: =P7*L7 -> 24500 | R7: Rongpin | X7: 1
A8: 2 | C8: IC | D8: LTE CAT 1 module, 4G + (GNSS) | E8: SIMCOM | F8: A7677S | I8: U12 | J8: 1 | K8: 1000 | L8: =J8*K8 -> 1000 | M8: pcs | N8: SMD | P8: =VLOOKUP(F8,'[1]RV1106 board'!$F$7:$P$143,11,0) -> 4.5 | Q8: =P8*L8 -> 4500 | S8: Cần tối ưu giá | X8: 1
A9: 3 | C9: IC | D9: GNSS Module with GPS, GLONASS, BDS, Galileo, QZSS, High Sensitivity, Low Power Consumption | E9: SIMCom Wireless Solutions | F9: SIM65M-C | I9: M2 | J9: 1 | K9: 1000 | L9: =J9*K9 -> 1000 | M9: pcs | N9: SMD | P9: =VLOOKUP(F9,'[1]RV1106 board'!$F$7:$P$143,11,0) -> 4.5 | Q9: =P9*L9 -> 4500 | S9: Cần tối ưu giá
A10: 4 | C10: PCB | D10: PCB, 4 layer, 135.1 mm x 134.772 mm, PCB Thickness: 1,56mm, Material Type: FR-4 TG155 | E10: JLC | J10: 1 | K10: 1000 | L10: =J10*K10 -> 1000 | M10: pcs | N10: ASM | P10: 2 | Q10: =P10*L10 -> 2000 | S10: Cần tối ưu giá | X10: 1
A11: 5 | C11: IC | D11: 4Ch HD/SD Analog Video Decoder | E11: CHIPUP | F11: XS9922B | I11: U6 | J11: 1 | K11: 1000 | L11: =J11*K11 -> 1000 | M11: pcs | N11: ASM | P11: =VLOOKUP(F11,'[1]RV1106 board'!$F$7:$P$143,11,0) -> 1.5 | Q11: =P11*L11 -> 1500 | R11: =VLOOKUP(F11,'[1]RV1106 board'!$F$7:$R$143,13,0) -> Rongpin | X11: 1
A12: 6 | C12: IC | D12: Costoptimized high performance RX microcontroller with enhanced touch key function and 5V operation support. | E12: Renesas Electronics | F12: R5F51303ADFM | I12: U23 | J12: 1 | K12: 1000 | L12: =J12*K12 -> 1000 | M12: pcs | N12: SMD | P12: =VLOOKUP(F12,'[1]RV1106 board'!$F$7:$P$143,11,0) -> 1.1 | Q12: =P12*L12 -> 1100 | R12: =VLOOKUP(F12,'[1]RV1106 board'!$F$7:$R$143,13,0) -> AVNET | X12: 1
A13: 7 | C13: Connector | D13: RJ45Receptacle 1 WithLED Plugin Ethernet Connectors / Modular Connectors (RJ45 RJ11) ROHS | E13: HANRUN(Zhongshan HanRun Elec) | F13: HR911105A | I13: J10 | J13: 1 | K13: 1000 | L13: =J13*K13 -> 1000 | M13: pcs | N13: TH | P13: =VLOOKUP(F13,'[1]RV1106 board'!$F$7:$P$143,11,0) -> 0.9147 | Q13: =P13*L13 -> 914.7 | R13: =VLOOKUP(F13,'[1]RV1106 board'!$F$7:$R$143,13,0) -> LCSC | S13: Cần tối ưu giá | X13: C3,C21
A14: 8 | C14: Connector | D14: NANO SIM+TF /NANO SIM*2 | E14: MUP | F14: M6110-01 & M6110-31 | I14: J6 | J14: 1 | K14: 1000 | L14: =J14*K14 -> 1000 | M14: pcs | N14: SMD | O14: Khe cắm và tray Sim | P14: =VLOOKUP(F14,'[1]RV1106 board'!$F$7:$P$143,11,0) -> 0.86 | Q14: =P14*L14 -> 860 | R14: =VLOOKUP(F14,'[1]RV1106 board'!$F$7:$R$143,13,0) -> MUP | X14: C4
A15: 9 | C15: IC | D15: IC DRVR/RCVR MULTCH RS232 16SOIC | E15: HGSEMI | F15: SP3232AEIM/TR | G15: Texas Instruments | H15: MAX3232CDR | I15: U11, U14, U15 | J15: 3 | K15: 1000 | L15: =J15*K15 -> 3000 | M15: pcs | N15: SMD | P15: =VLOOKUP(F15,'[1]RV1106 board'!$F$7:$P$143,11,0) -> 0.156 | Q15: =P15*L15 -> 468 | R15: =VLOOKUP(F15,'[1]RV1106 board'!$F$7:$R$143,13,0) -> LCSC | X15: C32,C191,C12,C34,C171,C104,C105,C192,C197,C5,58,56,60,61,62,72,73,74,75,76,77,79,82,
A16: 10 | C16: Inductor | D16: 3.3A 22uH ±20% 7A SMD,12.2x12.2mm Arrays, Signal Transformers RoHS | E16: PULSE | F16: PF0552.223NLT | G16: Sumida | H16: CDRCH12D78BNP-220MC | I16: L3 | J16: 1 | K16: 1000 | L16: =J16*K16 -> 1000 | M16: pcs | N16: SMD | P16: =VLOOKUP(F16,'[1]RV1106 board'!$F$7:$P$143,11,0) -> 0.4329 | Q16: =P16*L16 -> 432.9 | R16: =VLOOKUP(F16,'[1]RV1106 board'!$F$7:$R$143,13,0) -> LCSC | X16: C31,C190,C8,C6
A17: 11 | C17: LED | D17: 60mA Red Lens 615nm~635nm -20℃~+85℃ Red 50° 150mW 1.8V~2.2V DIP-6-2.54mm LED Indication - Discrete ROHS | E17: XINGLIGHT | F17: XL-DZ304SURD/3 | I17: LED1, LED2 | J17: 2 | K17: 1000 | L17: =J17*K17 -> 2000 | M17: pcs | N17: TH | P17: =VLOOKUP(F17,'[1]RV1106 board'!$F$7:$P$143,11,0) -> 0.2013 | Q17: =P17*L17 -> 402.6 | R17: =VLOOKUP(F17,'[1]RV1106 board'!$F$7:$R$143,13,0) -> LCSC | X17: C9,C25, C106, c193,c174,c194,c195, c175,C22
A18: 12 | C18: Capacitor | D18: 100uF ±20% 16V Ceramic Capacitor X5R 1210 | E18: Chinocera | F18: HGC1210R5107M160NSVK | G18: Taiyo Yuden | H18: EMK325ABJ107MM-T | I18: C140, C146 | J18: 2 | K18: 1000 | L18: =J18*K18 -> 2000 | M18: pcs | N18: SMD | P18: =VLOOKUP(F18,'[1]RV1106 board'!$F$7:$P$143,11,0) -> 0.188 | Q18: =P18*L18 -> 376 | R18: =VLOOKUP(F18,'[1]RV1106 board'!$F$7:$R$143,13,0) -> LCSC | X18: 1
A19: 13 | C19: Connector | D19: Card Connector NANO SIM Hinged Lid Surface Mount | E19: MUP | F19: C7802-02 | I19: J23 | J19: 1 | K19: 1000 | L19: =J19*K19 -> 1000 | M19: pcs | N19: SMD | P19: =VLOOKUP(F19,'[1]RV1106 board'!$F$7:$P$143,11,0) -> 0.2922 | Q19: =P19*L19 -> 292.2 | R19: =VLOOKUP(F19,'[1]RV1106 board'!$F$7:$R$143,13,0) -> LCSC | X19: 1
A20: 14 | C20: IC | D20: 1 Boost VSSOP-10-0.5mm DC DC Switching Controllers RoHS | E20: Texas Instruments | F20: LM3481MMX/NOPB | I20: U3 | J20: 1 | K20: 1000 | L20: =J20*K20 -> 1000 | M20: pcs | N20: SMD | P20: =VLOOKUP(F20,'[1]RV1106 board'!$F$7:$P$143,11,0) -> 0.2832 | Q20: =P20*L20 -> 283.2 | R20: =VLOOKUP(F20,'[1]RV1106 board'!$F$7:$R$143,13,0) -> LCSC | X20: 1
A21: 15 | C21: IC | D21: 2.5MHz Buck Adjustable 800mV~28V 5A SOIC-8-EP Voltage Regulators - DC DC Switching Regulators RoHS | E21: TI | F21: LMR14050SDDAR | I21: U1 | J21: 1 | K21: 1000 | L21: =J21*K21 -> 1000 | M21: pcs | N21: SMD | P21: =VLOOKUP(F21,'[1]RV1106 board'!$F$7:$P$143,11,0) -> 0.26 | Q21: =P21*L21 -> 260 | R21: =VLOOKUP(F21,'[1]RV1106 board'!$F$7:$R$143,13,0) -> LCSC | X21: C15
A22: 16 | C22: IC | D22: 2.5A, 3MHz Switching Charger with Dynamic Power Path Management | E22: etasolution | F22: ETA6003Q3Q | I22: U22 | J22: 1 | K22: 1000 | L22: =J22*K22 -> 1000 | M22: pcs | N22: SMD | P22: =VLOOKUP(F22,'[1]RV1106 board'!$F$7:$P$143,11,0) -> 0.254 | Q22: =P22*L22 -> 254 | R22: =VLOOKUP(F22,'[1]RV1106 board'!$F$7:$R$143,13,0) -> LCSC | X22: 1
A23: 17 | C23: MOSFET | D23: 100V 15A 49mΩ@10V,5A 2.8W 3.2V 1 N-Channel VSONP-8(3.1x3.1) MOSFETs ROHS | E23: Texas Instruments | F23: CSD19538Q3A | I23: Q3 | J23: 1 | K23: 1000 | L23: =J23*K23 -> 1000 | M23: pcs | N23: SMD | P23: =VLOOKUP(F23,'[1]RV1106 board'!$F$7:$P$143,11,0) -> 0.2516 | Q23: =P23*L23 -> 251.6 | R23: =VLOOKUP(F23,'[1]RV1106 board'!$F$7:$R$143,13,0) -> LCSC | X23: C179,C20
A24: 18 | C24: Heat Sinks | D24: Heat Sinks 40.6×40.6×4.2mm | E24: YG | F24: YG-L40.6W40.6H4.2FPSY11 | I24: H1 | J24: 1 | K24: 1000 | L24: =J24*K24 -> 1000 | M24: pcs | O24: Heat Sinks ở version tiếp theo đổi sang mã YG-L40.6W40.6H4.2FPSY11 | P24: =VLOOKUP(F24,'[1]RV1106 board'!$F$7:$P$143,11,0) -> 0.2411 | Q24: =P24*L24 -> 241.1 | R24: =VLOOKUP(F24,'[1]RV1106 board'!$F$7:$R$143,13,0) -> LCSC | S24: Sourcing thêm NCC tản nhiệt, có thể hỏi GEMAY hoặc Kingreat | X24: 1
A25: 19 | C25: Connector | D25: 9P Male D-Sub Bend insert 2 3A -50℃~+105℃ Push-Pull D-Sub / VGA Connectors ROHS | E25: Ckmtw(Shenzhen Cankemeng) | F25: D-DMR009PM-D002 | I25: J4 | J25: 1 | K25: 1000 | L25: =J25*K25 -> 1000 | M25: pcs | N25: TH | P25: =VLOOKUP(F25,'[1]RV1106 board'!$F$7:$P$143,11,0) -> 0.2298 | Q25: =P25*L25 -> 229.8 | R25: =VLOOKUP(F25,'[1]RV1106 board'!$F$7:$R$143,13,0) -> LCSC | X25: 1
A26: 20 | C26: Connector | D26: 67P Surface Mount, Right Angle SMD,P=0.5mm,Surface Mount,Right Angle Centronics Connectors RoHS | E26: FOXCONN | F26: AS0BC21-S40BM-7H | I26: J28 | J26: 1 | K26: 1000 | L26: =J26*K26 -> 1000 | M26: pcs | N26: SMD | P26: =VLOOKUP(F26,'[1]RV1106 board'!$F$7:$P$143,11,0) -> 0.2273 | Q26: =P26*L26 -> 227.3 | R26: =VLOOKUP(F26,'[1]RV1106 board'!$F$7:$R$143,13,0) -> LCSC | X26: 1
A27: 21 | C27: Connector | D27: 2mm 2mm 2 12P 2x6P -40℃~+105℃ 4.3mm Top 2A Square Hole Through Hole Through Hole,P=2mm Headers, Receptacles, Female Sockets RoHS | E27: XFCN | F27: PM200V-12-12-H43 | I27: J14, J15, J16 | J27: 3 | K27: 1000 | L27: =J27*K27 -> 3000 | M27: pcs | N27: TH | P27: =VLOOKUP(F27,'[1]RV1106 board'!$F$7:$P$143,11,0) -> 0.0747 | Q27: =P27*L27 -> 224.1 | R27: =VLOOKUP(F27,'[1]RV1106 board'!$F$7:$R$143,13,0) -> LCSC | X27: 1
A28: 22 | C28: Capacitor | D28: CAP CER 10uF 50V X5R 1206 | E28: FOJAN | F28: FCC1206X106K500HT | G28: AIDE CAPACITOR | H28: C1206X5R106K500NT | I28: C41, C10, C18, C28, C30, C38, C16, C35, C45 | J28: =1+8 -> 9 | K28: 1000 | L28: =J28*K28 -> 9000 | M28: pcs | N28: SMD | O28: Đổi C10, C18, C28, C30, C38, C16, C35, C45 từ 10uF/50V/X7R-1210 sang 10uF/50V/X5R-1206 | P28: =VLOOKUP(F28,'[1]RV1106 board'!$F$7:$P$143,11,0) -> 0.0233 | Q28: =P28*L28 -> 209.7 | R28: =VLOOKUP(F28,'[1]RV1106 board'!$F$7:$R$143,13,0) -> LCSC | X28: 1
A29: 23 | C29: Capacitor | D29: CAP CER 10uF 16V X5R 0805 | E29: Hottech | F29: C0805X5R106K160NT | I29: C6, C8, C31, C55, C70, C71, C81, C83, C85, C90, C92, C95, C101, C107, C110, C112, C115, C117, C122, C123, C132, C136, C155, C185, C188, C190 | J29: 26 | K29: 1000 | L29: =J29*K29 -> 26000 | M29: pcs | N29: SMD | P29: =VLOOKUP(F29,'[1]RV1106 board'!$F$7:$P$143,11,0) -> 0.008 | Q29: =P29*L29 -> 208 | R29: =VLOOKUP(F29,'[1]RV1106 board'!$F$7:$R$143,13,0) -> LCSC | X29: 1
A30: 24 | C30: Diode | D30: 275A 1 Independent 60V 620mV@7A 7A Power-DI-5 Single Diodes RoHS | E30: FUXINSEMI | F30: PDS760 | G30: DIODES | H30: PDS760-13 | I30: D3 | J30: 1 | K30: 1000 | L30: =J30*K30 -> 1000 | M30: pcs | N30: SMD | P30: =VLOOKUP(F30,'[1]RV1106 board'!$F$7:$P$143,11,0) -> 0.1903 | Q30: =P30*L30 -> 190.3 | R30: =VLOOKUP(F30,'[1]RV1106 board'!$F$7:$R$143,13,0) -> LCSC | X30: 1
A31: 25 | C31: Diode | D31: DFN1006-2 TVS Diodes ROHS | E31: Leiditech | F31: LM-AZ6118-01F | I31: D2, D4, D42, D43 | J31: 4 | K31: 1000 | L31: =J31*K31 -> 4000 | M31: pcs | N31: SMD | P31: =VLOOKUP(F31,'[1]RV1106 board'!$F$7:$P$143,11,0) -> 0.0465 | Q31: =P31*L31 -> 186 | R31: =VLOOKUP(F31,'[1]RV1106 board'!$F$7:$R$143,13,0) -> LCSC
A32: 26 | C32: Resistor | D32: 500mW Thin Film Resistor ±100ppm/℃ ±0.5% 15mΩ 1206 Chip Resistor - Surface Mount ROHS | E32: Yageo | F32: PE1206DRF7W0R015L | I32: R21 | J32: 1 | K32: 1000 | L32: =J32*K32 -> 1000 | M32: pcs | N32: SMD | P32: 0.1109 | Q32: =P32*L32 -> 110.9 | R32: =VLOOKUP(F32,'[1]RV1106 board'!$F$7:$R$143,13,0) -> LCSC
A33: 27 | C33: IC | D33: Buck 1MHz Adjustable 600mV~7.3V 3A SOT23-5 Voltage Regulators - DC DC Switching Regulators RoHS | E33: etasolution | F33: ETA3409S2F | I33: U2, U4, U7 | J33: 3 | K33: 1000 | L33: =J33*K33 -> 3000 | M33: pcs | N33: SMD | P33: 0.059 | Q33: =P33*L33 -> 177 | R33: =VLOOKUP(F33,'[1]RV1106 board'!$F$7:$R$143,13,0) -> LCSC
A34: 28 | C34: MOSFET | D34: SOT-23-3 MOSFETs P-Chanel ROHS | E34: TECH PUBLIC | F34: SI2333CDS | I34: Q20, Q35, Q36 | J34: 3 | K34: 1000 | L34: =J34*K34 -> 3000 | M34: pcs | N34: SMD | P34: 0.058 | Q34: =P34*L34 -> 174 | R34: =VLOOKUP(F34,'[1]RV1106 board'!$F$7:$R$143,13,0) -> LCSC
A35: 29 | C35: Inductor | D35: 6A 6.8uH ±20% 39mΩ 10A SMD,7.1x6.6mm Fixed Inductors RoHS | E35: PROD Tech | F35: PSPMAA0605H-6R8M-ANP | I35: L2 | J35: 1 | K35: 1000 | L35: =J35*K35 -> 1000 | M35: pcs | N35: SMD | P35: 0.1007 | Q35: =P35*L35 -> 100.7 | R35: =VLOOKUP(F35,'[1]RV1106 board'!$F$7:$R$143,13,0) -> LCSC
A36: 30 | C36: IC | D36: 500mA, low IQ, high precision, adjustable ultra-low dropout voltage regulator with enable function | E36: TI | F36: TLV75801PDBVR | I36: U5, U8, U9, U10 | J36: 4 | K36: 1000 | L36: =J36*K36 -> 4000 | M36: pcs | N36: SMD | P36: 0.0415 | Q36: =P36*L36 -> 166 | R36: =VLOOKUP(F36,'[1]RV1106 board'!$F$7:$R$143,13,0) -> LCSC
A37: 31 | C37: Connector | D37: 1 Inner pin IPEX Board-End 1.25mm -40℃~+90℃ 3GHz 50Ω 2mm SMD Coaxial Connectors (RF) ROHS | E37: Shenzhen Kinghelm Elec | F37: KH-IPEX-K501-29 | I37: J5, J7, J9 | J37: 3 | K37: 1000 | L37: =J37*K37 -> 3000 | M37: pcs | N37: SMD | P37: =VLOOKUP(F37,'[1]RV1106 board'!$F$7:$P$143,11,0) -> 0.0467 | Q37: =P37*L37 -> 140.1 | R37: =VLOOKUP(F37,'[1]RV1106 board'!$F$7:$R$143,13,0) -> LCSC
A38: 32 | C38: Ferrite Bead | D38: 10mΩ ±25% 10Ω@100MHz 0603 Ferrite Beads and Chips RoHS | E38: YJYCOIN | F38: YI160808U100-5R0T | I38: E1, E2, E3, E4, E5, E16, E22, E29, E30, E31, E32 | J38: 11 | K38: 1000 | L38: =J38*K38 -> 11000 | M38: pcs | N38: SMD | P38: 0.0124 | Q38: =P38*L38 -> 136.4 | R38: =VLOOKUP(F38,'[1]RV1106 board'!$F$7:$R$143,13,0) -> LCSC | X38: 1
A39: 33 | C39: MOSFET | D39: N-Channel 30V 0.1A 0.35W Surface Mount SOT-23 | E39: JSCJ | F39: 2SK3018 | I39: Q1, Q2, Q5, Q6, Q7, Q8, Q9, Q10, Q11, Q42 | J39: 10 | K39: 1000 | L39: =J39*K39 -> 10000 | M39: pcs | N39: SMD | P39: 0.0128 | Q39: =P39*L39 -> 128 | R39: =VLOOKUP(F39,'[1]RV1106 board'!$F$7:$R$143,13,0) -> LCSC | X39: J5, J7, J9
A40: 34 | C40: Capacitor | D40: 16V 47uF X5R ±20% 1206 Multilayer Ceramic Capacitors MLCC - SMD/SMT ROHS | E40: HRE | F40: CGA1206X5R476M160NT | G40: Taiyo Yuden | H40: EMK316BBJ476ML-T | I40: C20, C179 | J40: 2 | K40: 1000 | L40: =J40*K40 -> 2000 | M40: pcs | N40: SMD | P40: =VLOOKUP(F40,'[1]RV1106 board'!$F$7:$P$143,11,0) -> 0.0594 | Q40: =P40*L40 -> 118.8 | R40: =VLOOKUP(F40,'[1]RV1106 board'!$F$7:$R$143,13,0) -> LCSC | X40: 1
A41: 35 | C41: Speaker | D41: 85dB Active Buzzer (Built-in Driving Circuit) Electromagnetic 3kHz Through Hole,D=9mm Buzzers ROHS | E41: Huaneng | F41: HNB09A05 | I41: BZ1 | J41: 1 | K41: 1000 | L41: =J41*K41 -> 1000 | M41: pcs | N41: TH | P41: 0.1161 | Q41: =P41*L41 -> 116.1 | R41: =VLOOKUP(F41,'[1]RV1106 board'!$F$7:$R$143,13,0) -> LCSC | X41: 1
A42: 36 | C42: Ferrite Bead | D42: FERRITE BEAD 1 KOHM 0805 1.5A | E42: Sunlord | F42: UPZ2012E102-1R5TF | I42: E6, E15, E26, E27, E28, E33 | J42: 6 | K42: 1000 | L42: =J42*K42 -> 6000 | M42: pcs | N42: SMD | P42: 0.0076 | Q42: =P42*L42 -> 45.6 | R42: =VLOOKUP(F42,'[1]RV1106 board'!$F$7:$R$143,13,0) -> LCSC | X42: 1
A43: 37 | C43: Inductor | D43: 3.2A 2.2uH 5.8A 34mΩ ±20% SMD,4x4mm Fixed Inductors RoHS | E43: ZE | F43: ZNR3015ST2R2M | I43: L4, L5, L6 | J43: 3 | K43: 1000 | L43: =J43*K43 -> 3000 | M43: pcs | N43: SMD | P43: 0.0178 | Q43: =P43*L43 -> 53.4 | R43: =VLOOKUP(F43,'[1]RV1106 board'!$F$7:$R$143,13,0) -> LCSC | X43: 1
A44: 38 | C44: Spacer | D44: SMD SMT ROHS | F44: TH-0.8-0.5-M1.4 | I44: H2 | J44: 1 | K44: 1000 | L44: =J44*K44 -> 1000 | M44: pcs | O44: Spacer để giữ module SOM Chưa có giá chính xác | P44: 0.1 | Q44: =P44*L44 -> 100 | R44: Rongpin | S44: Hỏi Rongpin báo giá, đặt mua cùng với SOM PCIE-RV1106 PCIE | X44: D2,D4
A45: 39 | C45: Inductor | D45: 8A 2.2uH ±20% 8.8A 12.5mΩ SMD,7x6.6mm Fixed Inductors RoHS | E45: zoomdo electronics | F45: ZD0650-2R2M | I45: L1 | J45: 1 | K45: 1000 | L45: =J45*K45 -> 1000 | M45: pcs | N45: SMD | P45: 0.0558 | Q45: =P45*L45 -> 55.8 | R45: =VLOOKUP(F45,'[1]RV1106 board'!$F$7:$R$143,13,0) -> LCSC | X45: 1
A46: 40 | C46: Transistor | D46: TRANS NPN 40V 0.2A SOT23 | E46: TDSEMIC | F46: MMBT3904-TD | G46: Micro Commercial Co | H46: MMBT3904-TP | I46: Q4, Q12, Q16, Q17, Q19, Q21, Q23, Q24, Q25, Q26, Q27, Q28, Q29, Q30, Q31, Q32, Q33, Q34, Q37, Q38, Q39, Q41 | J46: 22 | K46: 1000 | L46: =J46*K46 -> 22000 | M46: pcs | N46: SMD | P46: 0.0035 | Q46: =P46*L46 -> 77 | R46: LCSC | X46: 1
A47: 41 | C47: IC | D47: SOT-26 ESD and Surge Protection (TVS/ESD) ROHS | E47: Leiditech | F47: SR05-04A | I47: U19 | J47: 1 | K47: 1000 | L47: =J47*K47 -> 1000 | M47: pcs | N47: SMD | P47: 0.0505 | Q47: =P47*L47 -> 50.5 | R47: =VLOOKUP(F47,'[1]RV1106 board'!$F$7:$R$143,13,0) -> LCSC
A48: 42 | C48: Diode | D48: DIODE SCHOTTKY 60V 3A SMAF | E48: HY | F48: SS36F | I48: D54, D55 | J48: 2 | K48: 1000 | L48: =J48*K48 -> 2000 | M48: pcs | N48: SMD | P48: =VLOOKUP(F48,'[1]RV1106 board'!$F$7:$P$143,11,0) -> 0.0338 | Q48: =P48*L48 -> 67.6 | R48: =VLOOKUP(F48,'[1]RV1106 board'!$F$7:$R$143,13,0) -> LCSC | X48: 1
A49: 43 | C49: Ferrite Bead | D49: 60Ω@100MHz 1 Line Ferrite Bead 0402 600mA 150mΩ | E49: FH | F49: CBW100505U600T | I49: E7, E8, E9, E10, E11, E12, E13, E14, E17, E18, E19, E20, E21 | J49: 13 | K49: 1000 | L49: =J49*K49 -> 13000 | M49: pcs | N49: SMD | P49: =VLOOKUP(F49,'[1]RV1106 board'!$F$7:$P$143,11,0) -> 0.0050 | Q49: =P49*L49 -> 65 | R49: =VLOOKUP(F49,'[1]RV1106 board'!$F$7:$R$143,13,0) -> LCSC
A50: 44 | C50: Switch | D50: Without bracket 50mA 3.5mm 100000 Times 260gf 12V 3mm 2mm Round Button Standing paste SPST SMD Tactile Switches ROHS | E50: XUNPU | F50: TS-1090S-AR02026 | I50: K1 | J50: 1 | K50: 1000 | L50: =J50*K50 -> 1000 | M50: pcs | N50: SMD | P50: =VLOOKUP(F50,'[1]RV1106 board'!$F$7:$P$143,11,0) -> 0.0637 | Q50: =P50*L50 -> 63.7 | R50: =VLOOKUP(F50,'[1]RV1106 board'!$F$7:$R$143,13,0) -> LCSC | X50: D20
A51: 45 | C51: Diode | D51: Independent Type 10A 1.1V@10A 1kV SMC(DO-214AB) Diodes - General Purpose ROHS | E51: GOODWORK | F51: S10M | I51: D52 | J51: 1 | K51: 1000 | L51: =J51*K51 -> 1000 | M51: pcs | N51: SMD | P51: =VLOOKUP(F51,'[1]RV1106 board'!$F$7:$P$143,11,0) -> 0.0568 | Q51: =P51*L51 -> 56.8 | R51: =VLOOKUP(F51,'[1]RV1106 board'!$F$7:$R$143,13,0) -> LCSC
A52: 46 | C52: IC | D52: 2mV 25nA Dual channel SOIC-8 Comparators ROHS | E52: Texas Instruments | F52: LM393DR | I52: U21 | J52: 1 | K52: 1000 | L52: =J52*K52 -> 1000 | M52: pcs | N52: SMD | P52: =VLOOKUP(F52,'[1]RV1106 board'!$F$7:$P$143,11,0) -> 0.0554 | Q52: =P52*L52 -> 55.4 | R52: =VLOOKUP(F52,'[1]RV1106 board'!$F$7:$R$143,13,0) -> LCSC | X52: 1
A53: 47 | C53: Diode | D53: 50V 5.5V 20V~35V 0402 Varistors, MOVs RoHS | E53: R+O | F53: HMLV0402-5R5E100 | G53: TDK | H53: B72590D50H160 | I53: D9, D10, D12, D13, D23, D24, D25, D26, D27, D28, D29 | J53: 11 | K53: 1000 | L53: =J53*K53 -> 11000 | M53: pcs | N53: SMD | P53: 0.005 | Q53: =P53*L53 -> 55 | R53: =VLOOKUP(F53,'[1]RV1106 board'!$F$7:$R$143,13,0) ->  | X53: 1
A54: 48 | C54: MOSFET | D54: MOSFET P-CH 30V 4.2A SOT-23 | E54: ASDsemi | F54: ASDM3401ZA-R | I54: Q13 | J54: 1 | K54: 1000 | L54: =J54*K54 -> 1000 | M54: pcs | N54: SMD | P54: =VLOOKUP(F54,'[1]RV1106 board'!$F$7:$P$143,11,0) -> 0.0526 | Q54: =P54*L54 -> 52.6 | R54: =VLOOKUP(F54,'[1]RV1106 board'!$F$7:$R$143,13,0) -> LCSC
A55: 49 | C55: IC | D55: SOT-363-6 ESD and Surge Protection (TVS/ESD) ROHS | E55: TECH PUBLIC | F55: SMF05CT1G-P | I55: U18 | J55: 1 | K55: 1000 | L55: =J55*K55 -> 1000 | M55: pcs | N55: SMD | P55: =VLOOKUP(F55,'[1]RV1106 board'!$F$7:$P$143,11,0) -> 0.0510 | Q55: =P55*L55 -> 51 | R55: =VLOOKUP(F55,'[1]RV1106 board'!$F$7:$R$143,13,0) -> LCSC | X55: E1,E30,E2,E22,e4,e29,e5,e32,e31,e3
A56: 50 | C56: Diode | D56: 43.6A 9.2V 400W 6.4V Unidirectional 5V SOD-123 TVS Diodes RoHS | E56: YTL | F56: SMF5.0A | G56: FUXINSEMI | H56: PTVS5V0S1UR | I56: D39, D40, D41, D44, D45 | J56: 5 | K56: 1000 | L56: =J56*K56 -> 5000 | M56: pcs | N56: SMD | P56: 0.0097 | Q56: =P56*L56 -> 48.5 | R56: LCSC | X56: E6,E33
A57: 51 | C57: Capacitor | D57: 16V 100nF X7R ±10% 0402 Multilayer Ceramic Capacitors MLCC - SMD/SMT ROHS | E57: Yageo | F57: CC0402KRX7R7BB104 | I57: C5, C12, C32, C34, C42, C50, C51, C52, C54, C56, C58, C60, C61, C62, C63, C64, C65, C66, C67, C68, C69, C72, C73, C74, C75, C76, C77, C78, C79, C80, C82, C84, C86, C87, C88, C89, C91, C93, C94, C96, C97, C98, C99, C100, C103, C104, C105, C108, C111, C113, C116, C118, C119, C120, C121, C124, C125, C126, C127, C128, C129, C130, C131, C135, C137, C144, C145, C148, C160, C168, C171, C172, C173, C178, C186, C189, C191, C192, C197 | J57: 79 | K57: 1000 | L57: =J57*K57 -> 79000 | M57: pcs | N57: SMD | P57: =VLOOKUP(F57,'[1]RV1106 board'!$F$7:$P$143,11,0) -> 0.0006 | Q57: =P57*L57 -> 47.4 | R57: =VLOOKUP(F57,'[1]RV1106 board'!$F$7:$R$143,13,0) -> LCSC
A58: 52 | C58: Capacitor | D58: 10uF 100V 63mA@120Hz ±20% SMD,D6.3xL5.4mm Aluminum Electrolytic Capacitors - SMD ROHS | E58: ROQANG | F58: RVT2A100M0605 | I58: C3, C21 | J58: 2 | K58: 1000 | L58: =J58*K58 -> 2000 | M58: pcs | N58: SMD | P58: =VLOOKUP(F58,'[1]RV1106 board'!$F$7:$P$143,11,0) -> 0.0226 | Q58: =P58*L58 -> 45.2 | R58: =VLOOKUP(F58,'[1]RV1106 board'!$F$7:$R$143,13,0) -> LCSC | X58: 1
A59: 53 | C59: Inductor | D59: 90Ω@100MHz 5Ω 2 SMD-4P,0.8x0.6mm Common Mode Filters ROHS | E59: Murata Electronics | F59: DLM0NSN900HY2D | I59: L10 | J59: 1 | K59: 1000 | L59: =J59*K59 -> 1000 | M59: pcs | N59: SMD | P59: =VLOOKUP(F59,'[1]RV1106 board'!$F$7:$P$143,11,0) -> 0.0431 | Q59: =P59*L59 -> 43.1 | R59: =VLOOKUP(F59,'[1]RV1106 board'!$F$7:$R$143,13,0) -> LCSC | X59: U2,U7,U4
A60: 54 | C60: LED | D60: 20mA 180mcd Colorless Transparent Lens 565nm~575nm -20℃~+85℃ Positive Stick Yellow-green 120° 50mW 2.4V 0603 LED Indication - Discrete ROH | E60: XINGLIGHT | F60: XL-1608SYGC-04 | I60: D1, D21, D32, D36, D56 | J60: 5 | K60: 1000 | L60: =J60*K60 -> 5000 | M60: pcs | N60: SMD | P60: =VLOOKUP(F60,'[1]RV1106 board'!$F$7:$P$143,11,0) -> 0.0084 | Q60: =P60*L60 -> 42 | R60: =VLOOKUP(F60,'[1]RV1106 board'!$F$7:$R$143,13,0) -> LCSC | X60: 1
A61: 55 | C61: Capacitor | D61: 100V 2.2uF X7R ±10% 1206 Multilayer Ceramic Capacitors MLCC - SMD/SMT ROHS | E61: CCTC | F61: TCC1206X7R225K101HT | I61: C1 | J61: 1 | K61: 1000 | L61: =J61*K61 -> 1000 | M61: pcs | N61: SMD | O61: Mã cũ: CCTC TCC1206X7R225K101HT | P61: =VLOOKUP(F61,'[1]RV1106 board'!$F$7:$P$143,11,0) -> 0.0385 | Q61: =P61*L61 -> 38.5 | R61: =VLOOKUP(F61,'[1]RV1106 board'!$F$7:$R$143,13,0) -> LCSC | X61: U5,U8,U9,U10
A62: 56 | C62: Thermistor | D62: 10kΩ ±1% 310uA 3435K 100mW ±1% 0603 NTC Thermistors ROHS | E62: Nanjing Shiheng Elec | F62: CMFA 103F3435 | I62: R236 | J62: 1 | K62: 1000 | L62: =J62*K62 -> 1000 | M62: pcs | N62: SMD | P62: =VLOOKUP(F62,'[1]RV1106 board'!$F$7:$P$143,11,0) -> 0.0378 | Q62: =P62*L62 -> 37.8 | R62: =VLOOKUP(F62,'[1]RV1106 board'!$F$7:$R$143,13,0) -> LCSC | X62: U11, U14, U15
A63: 57 | C63: Inductor | D63: 2A 2.2uH Magnetic Shielded Inductor ±20% 2A 60mΩ SMD,3x3mm Fixed Inductors RoHS | E63: ZE | F63: ZNR3015ST2R2M | I63: L7 | J63: 1 | K63: 1000 | L63: =J63*K63 -> 1000 | M63: pcs | N63: SMD | P63: =VLOOKUP(F63,'[1]RV1106 board'!$F$7:$P$143,11,0) -> 0.0371 | Q63: =P63*L63 -> 37.1 | R63: =VLOOKUP(F63,'[1]RV1106 board'!$F$7:$R$143,13,0) -> LCSC | X63: 1
A64: 58 | C64: Crystal | D64: Crystal 27MHz 10ppm 20pF 60Ω SMD2016-4P | E64: MDH | F64: 2.D.1.270002002 | I64: X1 | J64: 1 | K64: 1000 | L64: =J64*K64 -> 1000 | M64: pcs | N64: SMD | P64: =VLOOKUP(F64,'[1]RV1106 board'!$F$7:$P$143,11,0) -> 0.0333 | Q64: =P64*L64 -> 33.3 | R64: =VLOOKUP(F64,'[1]RV1106 board'!$F$7:$R$143,13,0) -> LCSC | X64: 1
A65: 59 | C65: Capacitor | D65: 470uF ±20% 16V Aluminum Electrolytic Capacitors 2000hrs@105℃ | E65: ROQANG | F65: RVT1C471M0810 | I65: C13 | J65: 1 | K65: 1000 | L65: =J65*K65 -> 1000 | M65: pcs | N65: SMD | P65: =VLOOKUP(F65,'[1]RV1106 board'!$F$7:$P$143,11,0) -> 0.033 | Q65: =P65*L65 -> 33 | R65: =VLOOKUP(F65,'[1]RV1106 board'!$F$7:$R$143,13,0) -> LCSC | X65: 1
A66: 60 | C66: Resistor | D66: 62.5mW Thick Film Resistor 50V ±100ppm/℃ ±1% 10kΩ 0402 Chip Resistor - Surface Mount ROHS | E66: Yageo | F66: RC0402FR-0710KL | I66: R6, R13, R16, R17, R18, R25, R31, R33, R34, R35, R36, R39, R49, R100, R113, R115, R116, R120, R140, R142, R147, R155, R164, R165, R185, R186, R187, R191, R192, R193, R194, R195, R198, R199, R201, R202, R205, R234, R250, R257 | J66: 40 | K66: 1000 | L66: =J66*K66 -> 40000 | M66: pcs | N66: SMD | P66: =VLOOKUP(F66,'[1]RV1106 board'!$F$7:$P$143,11,0) -> 0.0008 | Q66: =P66*L66 -> 32 | R66: =VLOOKUP(F66,'[1]RV1106 board'!$F$7:$R$143,13,0) -> LCSC | X66: 1
A67: 61 | C67: Capacitor | D67: 100uF 50V 146mA@120Hz ±20% SMD,D8xL10.2mm Aluminum Electrolytic Capacitors - SMD ROHS | E67: ROQANG | F67: RT1H101M0810 | I67: C40 | J67: 1 | K67: 1000 | L67: =J67*K67 -> 1000 | M67: pcs | N67: SMD | P67: =VLOOKUP(F67,'[1]RV1106 board'!$F$7:$P$143,11,0) -> 0.0318 | Q67: =P67*L67 -> 31.8 | R67: =VLOOKUP(F67,'[1]RV1106 board'!$F$7:$R$143,13,0) -> LCSC | X67: 1
A68: 62 | C68: Capacitor | D68: CAP CER 1UF 50V X5R 0603 | E68: CCTC | F68: TCC0603X5R105M500CT | G68: Samsung Electro-Mechanics | H68: CL10A105KB8NNNC | I68: C15, C48, C49, C57, C59, C139, C170 | J68: 7 | K68: 1000 | L68: =J68*K68 -> 7000 | M68: pcs | N68: SMD | P68: =VLOOKUP(F68,'[1]RV1106 board'!$F$7:$P$143,11,0) -> 0.0041 | Q68: =P68*L68 -> 28.7 | R68: =VLOOKUP(F68,'[1]RV1106 board'!$F$7:$R$143,13,0) -> LCSC | X68: 1
A69: 63 | C69: Diode | D69: 3A@8/20us 23V 70W@8/20us 6V 5V DFN1006-2L TVS Diodes RoHS | E69: Wayon | F69: WE05DGCF-B | I69: D7, D35 | J69: 2 | K69: 1000 | L69: =J69*K69 -> 2000 | M69: pcs | N69: SMD | P69: =VLOOKUP(F69,'[1]RV1106 board'!$F$7:$P$143,11,0) -> 0.0143 | Q69: =P69*L69 -> 28.6 | R69: =VLOOKUP(F69,'[1]RV1106 board'!$F$7:$R$143,13,0) -> LCSC | X69: 1
A70: 64 | C70: Diode | D70: Unidirectional 36V 40V 58.1V 3.4A SOD-123FL TVS RoHS | E70: MDD(Microdiode Semiconductor) | F70: SMF36A | I70: D53 | J70: 1 | K70: 1000 | L70: =J70*K70 -> 1000 | M70: pcs | N70: SMD | P70: =VLOOKUP(F70,'[1]RV1106 board'!$F$7:$P$143,11,0) -> 0.0286 | Q70: =P70*L70 -> 28.6 | R70: =VLOOKUP(F70,'[1]RV1106 board'!$F$7:$R$143,13,0) -> LCSC | X70: 1
A71: 65 | C71: Diode | D71: 40V Independent 500mV@3A 3A SMA(DO-214AC) Schottky Diodes ROHS | E71: Guangdong Hottech | F71: SS34A | I71: D6 | J71: 1 | K71: 1000 | L71: =J71*K71 -> 1000 | M71: pcs | N71: SMD | P71: =VLOOKUP(F71,'[1]RV1106 board'!$F$7:$P$143,11,0) -> 0.0258 | Q71: =P71*L71 -> 25.8 | R71: =VLOOKUP(F71,'[1]RV1106 board'!$F$7:$R$143,13,0) -> LCSC | X71: L4,L5,L6
A72: 66 | C72: Capacitor | D72: 50V 100nF X7R ±10% 0603 Multilayer Ceramic Capacitors MLCC - SMD/SMT ROHS | E72: Yageo | F72: CC0603KRX7R9BB104 | I72: C9, C22, C25, C36, C102, C106, C156, C158, C174, C175, C176, C193, C194, C195 | J72: 14 | K72: 1000 | L72: =J72*K72 -> 14000 | M72: pcs | N72: SMD | P72: =VLOOKUP(F72,'[1]RV1106 board'!$F$7:$P$143,11,0) -> 0.0017 | Q72: =P72*L72 -> 23.8 | R72: =VLOOKUP(F72,'[1]RV1106 board'!$F$7:$R$143,13,0) -> LCSC
A73: 67 | C73: Diode | D73: Unidirectional 5V (Max) 6.2V 18.6V 9.4A SOD-523 TVS RoHs | E73: Tak cheong | F73: ESD5Z5V0 | I73: D5, D19, D30 | J73: 3 | K73: 1000 | L73: =J73*K73 -> 3000 | M73: pcs | N73: SMD | P73: =VLOOKUP(F73,'[1]RV1106 board'!$F$7:$P$143,11,0) -> 0.0079 | Q73: =P73*L73 -> 23.7 | R73: =VLOOKUP(F73,'[1]RV1106 board'!$F$7:$R$143,13,0) -> LCSC
A74: 68 | C74: Capacitor | D74: 100V 100nF X7R ±10% 1206 Multilayer Ceramic Capacitors MLCC - SMD/SMT ROHS | E74: Yageo | F74: CC1206KKX7R0BB104 | I74: C2, C19 | J74: 2 | K74: 1000 | L74: =J74*K74 -> 2000 | M74: pcs | N74: SMD | P74: =VLOOKUP(F74,'[1]RV1106 board'!$F$7:$P$143,11,0) -> 0.0116 | Q74: =P74*L74 -> 23.2 | R74: =VLOOKUP(F74,'[1]RV1106 board'!$F$7:$R$143,13,0) -> LCSC
A75: 69 | C75: Capacitor | D75: 4.7uF 35V ±10% 0603 Multilayer Ceramic Capacitors MLCC - SMD/SMT ROHS | E75: AIDE CAPACITOR | F75: C0603X5R475K350NT | I75: C157 | J75: 1 | K75: 1000 | L75: =J75*K75 -> 1000 | M75: pcs | N75: SMD | P75: =VLOOKUP(F75,'[1]RV1106 board'!$F$7:$P$143,11,0) -> 0.0211 | Q75: =P75*L75 -> 21.1 | R75: =VLOOKUP(F75,'[1]RV1106 board'!$F$7:$R$143,13,0) -> LCSC
A76: 70 | C76: Capacitor | D76: C0G 33pF 50V ±5% 0402 Multilayer Ceramic Capacitors MLCC - SMD/SMT ROHS | E76: Samsung Electro-Mechanics | F76: CL05C330JB5NNNC | I76: C46, C47, C149, C150, C151, C159, C7, C141 | J76: =6 + 2 -> 8 | K76: 1000 | L76: =J76*K76 -> 8000 | M76: pcs | N76: SMD | O76: Đổi C7 từ 33pF/0603 sang 33pF/0402 Đổi C141 từ 33pF/0805 sang 33pF/0402 | P76: =VLOOKUP(F76,'[1]RV1106 board'!$F$7:$P$143,11,0) -> 0.0024 | Q76: =P76*L76 -> 19.2 | R76: =VLOOKUP(F76,'[1]RV1106 board'!$F$7:$R$143,13,0) -> LCSC | X76: D1
A77: 71 | C77: Resistor | D77: 62.5mW Thick Film Resistors 50V ±100ppm/℃ ±1% 4.7kΩ 0402 Chip Resistor - Surface Mount ROHS | E77: Yageo | F77: RC0402FR-074K7L | I77: R37, R38, R45, R64, R73, R80, R96, R97, R103, R134, R135, R141, R144, R148, R206, R211, R213, R218, R220, R221, R244, R251, R254, R260 | J77: 24 | K77: 1000 | L77: =J77*K77 -> 24000 | M77: pcs | N77: SMD | P77: =VLOOKUP(F77,'[1]RV1106 board'!$F$7:$P$143,11,0) -> 0.0008 | Q77: =P77*L77 -> 19.2 | R77: =VLOOKUP(F77,'[1]RV1106 board'!$F$7:$R$143,13,0) -> LCSC
A78: 72 | C78: MOSFET | D78: 50V 200mA 225mW 5.6Ω@2.75V,200mA 500mV 1 N-channel SOT-23 MOSFETs ROHS | E78: LRC | F78: LBSS139LT1G | I78: Q22 | J78: 1 | K78: 1000 | L78: =J78*K78 -> 1000 | M78: pcs | N78: SMD | P78: =VLOOKUP(F78,'[1]RV1106 board'!$F$7:$P$143,11,0) -> 0.0189 | Q78: =P78*L78 -> 18.9 | R78: =VLOOKUP(F78,'[1]RV1106 board'!$F$7:$R$143,13,0) -> LCSC
A79: 73 | C79: Resistor | D79: 62.5mW Thick Film Resistor 50V ±1% ±200ppm/℃ 10Ω 0402 Chip Resistor - Surface Mount ROHS | E79: Yageo | F79: RC0402FR-0710RL | I79: R77, R81, R82, R85, R87, R88, R91, R92, R151, R253 | J79: 10 | K79: 1000 | L79: =J79*K79 -> 10000 | M79: pcs | N79: SMD | P79: =VLOOKUP(F79,'[1]RV1106 board'!$F$7:$P$143,11,0) -> 0.0018 | Q79: =P79*L79 -> 18 | R79: =VLOOKUP(F79,'[1]RV1106 board'!$F$7:$R$143,13,0) -> LCSC | X79: 1
A80: 74 | C80: Diode | D80: DIODE ZENER 5.1V 500MW SOD123 | E80: Diodes Incorporated | F80: MMSZ5231B-7-F | I80: D8 | J80: 1 | K80: 1000 | L80: =J80*K80 -> 1000 | M80: pcs | N80: SMD | P80: =VLOOKUP(F80,'[1]RV1106 board'!$F$7:$P$143,11,0) -> 0.0179 | Q80: =P80*L80 -> 17.9 | R80: =VLOOKUP(F80,'[1]RV1106 board'!$F$7:$R$143,13,0) -> LCSC | X80: 1
A81: 75 | C81: Diode | D81: DIODE GEN PURP 1KV 1A SMA | E81: TDSEMIC | F81: 1N4007 M7 | I81: D20, D47, D48 | J81: 3 | K81: 1000 | L81: =J81*K81 -> 3000 | M81: pcs | N81: SMD | P81: =VLOOKUP(F81,'[1]RV1106 board'!$F$7:$P$143,11,0) -> 0.0059 | Q81: =P81*L81 -> 17.7 | R81: =VLOOKUP(F81,'[1]RV1106 board'!$F$7:$R$143,13,0) -> LCSC | X81: Q5,Q6,Q7,Q8,Q9,Q10,Q11,Q1,Q2,Q42
A82: 76 | C82: Resistor | D82: 62.5mW Thick Film Resistor 50V ±100ppm/℃ ±1% 1kΩ 0402 Chip Resistor - Surface Mount ROHS | E82: Yageo | F82: RC0402FR-071KL | I82: R9, R53, R78, R83, R86, R90, R94, R95, R102, R111, R112, R149, R156, R188, R189, R190, R196, R204, R233, R249, R256, R263 | J82: 22 | K82: 1000 | L82: =J82*K82 -> 22000 | M82: pcs | N82: SMD | P82: =VLOOKUP(F82,'[1]RV1106 board'!$F$7:$P$143,11,0) -> 0.0008 | Q82: =P82*L82 -> 17.6 | R82: =VLOOKUP(F82,'[1]RV1106 board'!$F$7:$R$143,13,0) -> LCSC | X82: 1
A83: 77 | C83: Capacitor | D83: 50V 100pF NP0 ±1% 0402 Multilayer Ceramic Capacitors MLCC - SMD/SMT ROHS | E83: Yageo | F83: CC0402FRNPO9BN101 | I83: C44, C133, C143, C161, C162, C166, C167, C169 | J83: 8 | K83: 1000 | L83: =J83*K83 -> 8000 | M83: pcs | N83: SMD | P83: =VLOOKUP(F83,'[1]RV1106 board'!$F$7:$P$143,11,0) -> 0.0021 | Q83: =P83*L83 -> 16.8 | R83: =VLOOKUP(F83,'[1]RV1106 board'!$F$7:$R$143,13,0) -> LCSC | X83: 1
A84: 78 | C84: Resistor | D84: 62.5mW Thick Film Resistor 50V ±100ppm/℃ ±1% 2.2kΩ 0402 Chip Resistor - Surface Mount ROHS | E84: Yageo | F84: RC0402FR-072K2L | I84: R32, R51, R52, R63, R71, R72, R76, R129, R130, R131, R208, R209, R210, R215, R216, R217, R255, R259 | J84: 18 | K84: 1000 | L84: =J84*K84 -> 18000 | M84: pcs | N84: SMD | P84: =VLOOKUP(F84,'[1]RV1106 board'!$F$7:$P$143,11,0) -> 0.0009 | Q84: =P84*L84 -> 16.2 | R84: =VLOOKUP(F84,'[1]RV1106 board'!$F$7:$R$143,13,0) -> LCSC
A85: 79 | C85: Resistor | D85: 62.5mW 0Ω 50V ±1% Thick Film Resistors 0402 Chip Resistor - Surface Mount ROHS | E85: Yageo | F85: RC0402FR-070RL | I85: R56, R57, R58, R59, R61, R65, R66, R67, R68, R70, R74, R75, R98, R99, R119, R138, R154, R157, R246, R247 | J85: 20 | K85: 1000 | L85: =J85*K85 -> 20000 | M85: pcs | N85: SMD | P85: =VLOOKUP(F85,'[1]RV1106 board'!$F$7:$P$143,11,0) -> 0.0008 | Q85: =P85*L85 -> 16 | R85: =VLOOKUP(F85,'[1]RV1106 board'!$F$7:$R$143,13,0) -> LCSC
A86: 80 | C86: Connector | D86: XH Header Male Pin 0.098"(2.50mm) 2 Through Hole Wire To Board / Wire To Wire Connector RoHS | E86: BOOMELE(Boom Precision Elec) | F86: XH-2AW | I86: J17 | J86: 1 | K86: 1000 | L86: =J86*K86 -> 1000 | M86: pcs | N86: TH | P86: =VLOOKUP(F86,'[1]RV1106 board'!$F$7:$P$143,11,0) -> 0.0130 | Q86: =P86*L86 -> 13 | R86: =VLOOKUP(F86,'[1]RV1106 board'!$F$7:$R$143,13,0) -> LCSC | X86: 1
A87: 81 | C87: Resistor | D87: 62.5mW Thick Film Resistor 50V ±100ppm/℃ ±1% 47kΩ 0402 Chip Resistor - Surface Mount ROHS | E87: Yageo | F87: RC0402FR-0747KL | I87: R136, R137, R146, R150, R207, R212, R214, R219, R222, R223, R243, R245, R252, R258 | J87: 14 | K87: 1000 | L87: =J87*K87 -> 14000 | M87: pcs | N87: SMD | P87: =VLOOKUP(F87,'[1]RV1106 board'!$F$7:$P$143,11,0) -> 0.0009 | Q87: =P87*L87 -> 12.6 | R87: =VLOOKUP(F87,'[1]RV1106 board'!$F$7:$R$143,13,0) -> LCSC | X87: R27,R2
A88: 82 | C88: Resistor | D88: 50V Thick Film Resistors 62.5mW 22Ω ±1% ±100ppm/℃ 0402 Chip Resistor - Surface Mount ROHS | E88: Yageo | F88: RC0402FR-0722RL | I88: R41, R43, R47, R48, R60, R62, R69, R106, R107, R108, R109, R110, R124 | J88: 13 | K88: 1000 | L88: =J88*K88 -> 13000 | M88: pcs | N88: SMD | P88: =VLOOKUP(F88,'[1]RV1106 board'!$F$7:$P$143,11,0) -> 0.0009 | Q88: =P88*L88 -> 11.7 | R88: =VLOOKUP(F88,'[1]RV1106 board'!$F$7:$R$143,13,0) -> LCSC | X88: 1
A89: 83 | C89: Capacitor | D89: 2.2uF ±10% 6.3V X5R 0603 Multilayer Ceramic Capacitors MLCC - SMD/SMT RoHS | E89: Samsung Electro-Mechanics | F89: CL10A225KQ8NNNC | I89: C4, C154 | J89: 2 | K89: 1000 | L89: =J89*K89 -> 2000 | M89: pcs | N89: SMD | P89: =VLOOKUP(F89,'[1]RV1106 board'!$F$7:$P$143,11,0) -> 0.0048 | Q89: =P89*L89 -> 9.6 | R89: =VLOOKUP(F89,'[1]RV1106 board'!$F$7:$R$143,13,0) -> LCSC | X89: 1
A90: 84 | C90: Capacitor | D90: 50V 470nF X7R ±10% 0603 Multilayer Ceramic Capacitors MLCC - SMD/SMT ROHS | E90: Yageo | F90: CC0603KRX7R9BB474 | I90: C23 | J90: 1 | K90: 1000 | L90: =J90*K90 -> 1000 | M90: pcs | N90: SMD | P90: =VLOOKUP(F90,'[1]RV1106 board'!$F$7:$P$143,11,0) -> 0.0082 | Q90: =P90*L90 -> 8.2 | R90: =VLOOKUP(F90,'[1]RV1106 board'!$F$7:$R$143,13,0) -> LCSC | X90: R5,R10
A91: 85 | C91: LED | D91: 20mA 225mcd Colorless Transparent Lens -20℃~+85℃ Positive Stick 620nm~630nm Red 120° 50mW 2.3V 0603 LED Indication - Discrete ROH | E91: XINGLIGHT | F91: XL-1608SURC-06 | I91: D22, D33 | J91: 2 | K91: 1000 | L91: =J91*K91 -> 2000 | M91: pcs | N91: SMD | P91: =VLOOKUP(F91,'[1]RV1106 board'!$F$7:$P$143,11,0) -> 0.0038 | Q91: =P91*L91 -> 7.6 | R91: =VLOOKUP(F91,'[1]RV1106 board'!$F$7:$R$143,13,0) -> LCSC | X91: R13, r16,R25,R18,R250,R33,R257,R6,R34,R35,R164,R165,R17,R49,
A92: 86 | C92: Capacitor | D92: CAP CER 22UF 6.3V X5R 0603 | E92: Samsung Electro-Mechanics | F92: CL10A226MQ8NRNE | I92: C53 | J92: 1 | K92: 1000 | L92: =J92*K92 -> 1000 | M92: pcs | N92: SMD | P92: =VLOOKUP(F92,'[1]RV1106 board'!$F$7:$P$143,11,0) -> 0.0073 | Q92: =P92*L92 -> 7.3 | R92: =VLOOKUP(F92,'[1]RV1106 board'!$F$7:$R$143,13,0) -> LCSC | X92: 1
A93: 87 | C93: Resistor | D93: 62.5mW Thick Film Resistor 50V ±100ppm/℃ ±1% 100kΩ 0402 Chip Resistor - Surface Mount ROHS | E93: Yageo | F93: RC0402FR-07100KL | I93: R2, R27, R40, R44, R46, R114, R238, R240, R242 | J93: 9 | K93: 1000 | L93: =J93*K93 -> 9000 | M93: pcs | N93: SMD | P93: =VLOOKUP(F93,'[1]RV1106 board'!$F$7:$P$143,11,0) -> 0.0008 | Q93: =P93*L93 -> 7.2 | R93: =VLOOKUP(F93,'[1]RV1106 board'!$F$7:$R$143,13,0) -> LCSC | X93: 1
A94: 88 | C94: Connector | D94: XH Header Male Pin 0.098"(2.50mm) 2 Through Hole Wire To Board / Wire To Wire Connector RoHS | E94: BOOMELE(Boom Precision Elec) | F94: XH-2A | I94: J26 | J94: 1 | K94: 1000 | L94: =J94*K94 -> 1000 | M94: pcs | N94: TH | P94: =VLOOKUP(F94,'[1]RV1106 board'!$F$7:$P$143,11,0) -> 0.0070 | Q94: =P94*L94 -> 7 | R94: =VLOOKUP(F94,'[1]RV1106 board'!$F$7:$R$143,13,0) -> LCSC | X94: R256,R9,R53,R78,R83,R86,R90,R102,R94,R95,249,111,112,233,263,149,156,188,196,204,R190,189
A95: 89 | C95: Resistor | D95: 62.5mW 2.2Ω 50V Thick Film Resistor ±1% ±200ppm/℃ 0402 Chip Resistor - Surface Mount RoHS | E95: YAGEO | F95: YAGEO RC0402FR-072R2L | I95: R122, R123, R125, R126 | J95: 4 | K95: 1000 | L95: =J95*K95 -> 4000 | M95: pcs | N95: SMD | P95: =VLOOKUP(F95,'[1]RV1106 board'!$F$7:$P$143,11,0) -> 0.0017 | Q95: =P95*L95 -> 6.8 | R95: =VLOOKUP(F95,'[1]RV1106 board'!$F$7:$R$143,13,0) -> LCSC | X95: 1
A96: 90 | C96: LED | D96: LED YELLOW CLEAR 0603 SMD | E96: XINGLIGHT | F96: XL-1608UYC-06 | G96: Wurth Electronics Inc, | H96: 150060YS75000 | I96: D31 | J96: 1 | K96: 1000 | L96: =J96*K96 -> 1000 | M96: pcs | N96: SMD | P96: =VLOOKUP(F96,'[1]RV1106 board'!$F$7:$P$143,11,0) -> 0.0055 | Q96: =P96*L96 -> 5.5 | R96: =VLOOKUP(F96,'[1]RV1106 board'!$F$7:$R$143,13,0) -> LCSC | X96: 1
A97: 91 | C97: Inductor | D97: 180mA 68nH ±5% 1.4Ω 0402 Fixed Inductors RoHS | E97: FH | F97: VHF100505HQ68NJT | I97: L9 | J97: 1 | K97: 1000 | L97: =J97*K97 -> 1000 | M97: pcs | N97: SMD | P97: =VLOOKUP(F97,'[1]RV1106 board'!$F$7:$P$143,11,0) -> 0.0051 | Q97: =P97*L97 -> 5.1 | R97: =VLOOKUP(F97,'[1]RV1106 board'!$F$7:$R$143,13,0) -> LCSC | X97: 1
A98: 92 | C98: Capacitor | D98: CAP CER 4.7UF 6.3V X5R 0603 | E98: AIDE CAPACITOR | F98: C0603X5R475K6R3NT | I98: C196 | J98: 1 | K98: 1000 | L98: =J98*K98 -> 1000 | M98: pcs | N98: SMD | P98: =VLOOKUP(F98,'[1]RV1106 board'!$F$7:$P$143,11,0) -> 0.005 | Q98: =P98*L98 -> 5 | R98: =VLOOKUP(F98,'[1]RV1106 board'!$F$7:$R$143,13,0) -> LCSC | X98: R15
A99: 93 | C99: Inductor | D99: 700mA 47nH 160mΩ ±5% 0402 Fixed Inductors RoHS | F99: VHF100505HQ47NJT | I99: L8 | J99: 1 | K99: 1000 | L99: =J99*K99 -> 1000 | M99: pcs | N99: SMD | P99: =VLOOKUP(F99,'[1]RV1106 board'!$F$7:$P$143,11,0) -> 0.0047 | Q99: =P99*L99 -> 4.7 | R99: =VLOOKUP(F99,'[1]RV1106 board'!$F$7:$R$143,13,0) -> LCSC | X99: 1
A100: 94 | C100: Capacitor | D100: 50V 10pF C0G ±5% 0805 Multilayer Ceramic Capacitors MLCC - SMD/SMT ROHS | E100: CCTC | F100: TCC0805COG100J500BT | G100: PSA(Prosperity Dielectrics) | H100: FN21N100J500PAG | I100: C142 | J100: 1 | K100: 1000 | L100: =J100*K100 -> 1000 | M100: pcs | N100: SMD | P100: =VLOOKUP(F100,'[1]RV1106 board'!$F$7:$P$143,11,0) -> 0.0036 | Q100: =P100*L100 -> 3.6 | R100: =VLOOKUP(F100,'[1]RV1106 board'!$F$7:$R$143,13,0) -> LCSC | X100: 1
A101: 95 | C101: Resistor | D101: 62.5mW 118kΩ 50V Thick Film Resistor ±100ppm/℃ ±0.5% 0402 Chip Resistor - Surface Mount RoHS | E101: Yageo | F101: RC0402DR-07118KL | I101: R3 | J101: 1 | K101: 1000 | L101: =J101*K101 -> 1000 | M101: pcs | N101: SMD | P101: =VLOOKUP(F101,'[1]RV1106 board'!$F$7:$P$143,11,0) -> 0.0036 | Q101: =P101*L101 -> 3.6 | R101: =VLOOKUP(F101,'[1]RV1106 board'!$F$7:$R$143,13,0) -> LCSC | X101: 1
A102: 96 | C102: Resistor | D102: 62.5mW Thick Film Resistor 50V ±100ppm/℃ ±1% 75Ω 0402 Chip Resistor - Surface Mount ROHS | E102: Yageo | F102: RC0402FR-0775RL | I102: R79, R84, R89, R93 | J102: 4 | K102: 1000 | L102: =J102*K102 -> 4000 | M102: pcs | N102: SMD | P102: =VLOOKUP(F102,'[1]RV1106 board'!$F$7:$P$143,11,0) -> 0.0009 | Q102: =P102*L102 -> 3.6 | R102: =VLOOKUP(F102,'[1]RV1106 board'!$F$7:$R$143,13,0) -> LCSC | X102: 1
A103: 97 | C103: Resistor | D103: RES 0 OHM 1206 JUMPER 1/4W SMD | E103: YAGEO | F103: RC1206JR-070RL | I103: R166 | J103: 1 | K103: 1000 | L103: =J103*K103 -> 1000 | M103: pcs | N103: SMD | P103: =VLOOKUP(F103,'[1]RV1106 board'!$F$7:$P$143,11,0) -> 0.0035 | Q103: =P103*L103 -> 3.5 | R103: =VLOOKUP(F103,'[1]RV1106 board'!$F$7:$R$143,13,0) -> LCSC | X103: 1
A104: 98 | C104: Resistor | D104: RES SMD 0 OHM JUMPER 1/10W 0603 | E104: YAGEO | F104: RC0603JR-070RL | I104: R30, R121, R168 | J104: 3 | K104: 1000 | L104: =J104*K104 -> 3000 | M104: pcs | N104: SMD | P104: =VLOOKUP(F104,'[1]RV1106 board'!$F$7:$P$143,11,0) -> 0.0011 | Q104: =P104*L104 -> 3.3 | R104: =VLOOKUP(F104,'[1]RV1106 board'!$F$7:$R$143,13,0) -> LCSC | X104: R24
A105: 99 | C105: Resistor | D105: 62.5mW Thick Film Resistor 50V ±100ppm/℃ ±1% 100Ω 0402 Chip Resistor - Surface Mount ROHS | E105: Yageo | F105: RC0402FR-07100RL | I105: R15, R104, R105, R152 | J105: 4 | K105: 1000 | L105: =J105*K105 -> 4000 | M105: pcs | N105: SMD | P105: =VLOOKUP(F105,'[1]RV1106 board'!$F$7:$P$143,11,0) -> 0.0008 | Q105: =P105*L105 -> 3.2 | R105: =VLOOKUP(F105,'[1]RV1106 board'!$F$7:$R$143,13,0) -> LCSC | X105: R26
A106: 100 | C106: Resistor | D106: RES SMD 1 OHM 1% 1/10W 0603 | E106: YAGEO | F106: RC0603FR-071RL | I106: R1 | J106: 1 | K106: 1000 | L106: =J106*K106 -> 1000 | M106: pcs | N106: SMD | P106: =VLOOKUP(F106,'[1]RV1106 board'!$F$7:$P$143,11,0) -> 0.003 | Q106: =P106*L106 -> 3 | R106: =VLOOKUP(F106,'[1]RV1106 board'!$F$7:$R$143,13,0) -> LCSC
A107: 101 | C107: Resistor | D107: RES SMD 10K OHM 1% 1/10W 0603 | E107: Yageo, Hottech | F107: RC0603FR-0710KL, RI0603L1002FT | I107: R24, R235 | J107: 2 | K107: 1000 | L107: =J107*K107 -> 2000 | M107: pcs | N107: SMD | P107: =VLOOKUP(F107,'[1]RV1106 board'!$F$7:$P$143,11,0) -> 0.0015 | Q107: =P107*L107 -> 3 | R107: =VLOOKUP(F107,'[1]RV1106 board'!$F$7:$R$143,13,0) -> LCSC
A108: 102 | C108: Capacitor | D108: 50V 56nF X7R ±10% 0603 Multilayer Ceramic Capacitors MLCC - SMD/SMT ROHS | E108: Yageo | F108: CC0603KRX7R9BB563 | I108: C27 | J108: 1 | K108: 1000 | L108: =J108*K108 -> 1000 | M108: pcs | N108: SMD | P108: =VLOOKUP(F108,'[1]RV1106 board'!$F$7:$P$143,11,0) -> 0.0027 | Q108: =P108*L108 -> 2.7 | R108: =VLOOKUP(F108,'[1]RV1106 board'!$F$7:$R$143,13,0) -> LCSC | X108: R255,R51,R52,R63,R72
A109: 103 | C109: Capacitor | D109: 50V 75pF NP0 ±5% 0603 Multilayer Ceramic Capacitors MLCC - SMD/SMT ROHS | E109: Yageo | F109: CC0603JRNPO9BN750 | I109: C26 | J109: 1 | K109: 1000 | L109: =J109*K109 -> 1000 | M109: pcs | N109: SMD | P109: =VLOOKUP(F109,'[1]RV1106 board'!$F$7:$P$143,11,0) -> 0.0025 | Q109: =P109*L109 -> 2.5 | R109: =VLOOKUP(F109,'[1]RV1106 board'!$F$7:$R$143,13,0) -> LCSC | X109: R254, R251,64,73,37,38,45,103,97,260,96,80,134,135,144,244,141,148,206,211,213,218,220,221
A110: 104 | C110: Capacitor | D110: 22pF ±5% 50V Ceramic Capacitor NP0 0402 | E110: Yageo | F110: CC0402JRNPO9BN220 | I110: C17, C29,C37 | J110: 3 | K110: 1000 | L110: =J110*K110 -> 3000 | M110: pcs | N110: SMD | P110: =VLOOKUP(F110,'[1]RV1106 board'!$F$7:$P$143,11,0) -> 0.0008 | Q110: =P110*L110 -> 2.4 | R110: =VLOOKUP(F110,'[1]RV1106 board'!$F$7:$R$143,13,0) -> LCSC | X110: R47,R48,R41,R43
A111: 105 | C111: Capacitor | D111: 560 pF ±10% 50V Ceramic Capacitor X7R 0603 (1608 Metric) | E111: Yageo | F111: CC0603KRX7R9BB561 | I111: C24 | J111: 1 | K111: 1000 | L111: =J111*K111 -> 1000 | M111: pcs | N111: SMD | P111: =VLOOKUP(F111,'[1]RV1106 board'!$F$7:$P$143,11,0) -> 0.0022 | Q111: =P111*L111 -> 2.2 | R111: =VLOOKUP(F111,'[1]RV1106 board'!$F$7:$R$143,13,0) -> LCSC
A112: 106 | C112: Capacitor | D112: CAP CER 100PF 50V X7R 0603 | E112: YAGEO | F112: CC0603KRX7R9BB101 | I112: C39 | J112: 1 | K112: 1000 | L112: =J112*K112 -> 1000 | M112: pcs | N112: SMD | P112: =VLOOKUP(F112,'[1]RV1106 board'!$F$7:$P$143,11,0) -> 0.0022 | Q112: =P112*L112 -> 2.2 | R112: =VLOOKUP(F112,'[1]RV1106 board'!$F$7:$R$143,13,0) -> LCSC
A113: 107 | C113: Capacitor | D113: CAP CER 0.1UF 50V X7R 0603 | E113: AIDE CAPACITOR | F113: C0603X7R104K500NT | I113: C165 | J113: 1 | K113: 1000 | L113: =J113*K113 -> 1000 | M113: pcs | N113: SMD | P113: =VLOOKUP(F113,'[1]RV1106 board'!$F$7:$P$143,11,0) -> 0.0019 | Q113: =P113*L113 -> 1.9 | R113: =VLOOKUP(F113,'[1]RV1106 board'!$F$7:$R$143,13,0) -> LCSC
A114: 108 | C114: Resistor | D114: 62.5mW 499kΩ 50V Thick Film Resistor ±100ppm/℃ ±1% 0402 Chip Resistor - Surface Mount RoHS | E114: Yageo | F114: RC0402FR-07499KL | I114: R26, R241 | J114: 2 | K114: 1000 | L114: =J114*K114 -> 2000 | M114: pcs | N114: SMD | P114: =VLOOKUP(F114,'[1]RV1106 board'!$F$7:$P$143,11,0) -> 0.0009 | Q114: =P114*L114 -> 1.8 | R114: =VLOOKUP(F114,'[1]RV1106 board'!$F$7:$R$143,13,0) -> LCSC
A115: 109 | C115: Resistor | D115: 62.5mW Thick Film Resistor 50V ±100ppm/℃ ±1% 15kΩ 0402 Chip Resistor - Surface Mount ROHS | E115: Yageo | F115: RC0402FR-0715KL | I115: R50, R139 | J115: 2 | K115: 1000 | L115: =J115*K115 -> 2000 | M115: pcs | N115: SMD | P115: =VLOOKUP(F115,'[1]RV1106 board'!$F$7:$P$143,11,0) -> 0.0009 | Q115: =P115*L115 -> 1.8 | R115: =VLOOKUP(F115,'[1]RV1106 board'!$F$7:$R$143,13,0) -> LCSC | X115: R74,R75,R246,R247
A116: 110 | C116: Resistor | D116: 62.5mW 4.02Ω 50V Thick Film Resistor ±1% ±200ppm/℃ 0402 Chip Resistor - Surface Mount RoHS | E116: Yageo | F116: RC0402FR-074R02L | I116: R54 | J116: 1 | K116: 1000 | L116: =J116*K116 -> 1000 | M116: pcs | N116: SMD | P116: =VLOOKUP(F116,'[1]RV1106 board'!$F$7:$P$143,11,0) -> 0.0017 | Q116: =P116*L116 -> 1.7 | R116: =VLOOKUP(F116,'[1]RV1106 board'!$F$7:$R$143,13,0) -> LCSC | X116: 77,82,87,91,81,85,88,92,253,151
A117: 111 | C117: Resistor | D117: RES 1.1kΩ ±1% 62.5mW 0402 | E117: UNI-ROYAL | F117: 0402WGF1101TCE | I117: R5, R10 | J117: 2 | K117: 1000 | L117: =J117*K117 -> 2000 | M117: pcs | N117: SMD | P117: =VLOOKUP(F117,'[1]RV1106 board'!$F$7:$P$143,11,0) -> 0.0007 | Q117: =P117*L117 -> 1.4 | R117: =VLOOKUP(F117,'[1]RV1106 board'!$F$7:$R$143,13,0) -> LCSC
A118: 112 | C118: Resistor | D118: 62.5mW Thick Film Resistor 50V ±100ppm/℃ ±1% 590kΩ 0402 Chip Resistor - Surface Mount ROHS | E118: Yageo | F118: AC0402FR-07590KL | I118: R200 | J118: 1 | K118: 1000 | L118: =J118*K118 -> 1000 | M118: pcs | N118: SMD | P118: =VLOOKUP(F118,'[1]RV1106 board'!$F$7:$P$143,11,0) -> 0.0012 | Q118: =P118*L118 -> 1.2 | R118: =VLOOKUP(F118,'[1]RV1106 board'!$F$7:$R$143,13,0) -> LCSC
A119: 113 | C119: Resistor | D119: 226kΩ 62.5mW 50V Thick Film Resistor ±100ppm/℃ ±1% 0402 Chip Resistor - Surface Mount RoHS | E119: Yageo | F119: AC0402FR-07226KL | I119: R237 | J119: 1 | K119: 1000 | L119: =J119*K119 -> 1000 | M119: pcs | N119: SMD | P119: =VLOOKUP(F119,'[1]RV1106 board'!$F$7:$P$143,11,0) -> 0.0012 | Q119: =P119*L119 -> 1.2 | R119: =VLOOKUP(F119,'[1]RV1106 board'!$F$7:$R$143,13,0) -> LCSC
A120: 114 | C120: Capacitor | D120: 8.2nF ±10% 50V Ceramic Capacitor X7R 0402 | E120: Yageo | F120: CC0402KRX7R9BB822 | I120: C14 | J120: 1 | K120: 1000 | L120: =J120*K120 -> 1000 | M120: pcs | N120: SMD | P120: =VLOOKUP(F120,'[1]RV1106 board'!$F$7:$P$143,11,0) -> 0.0011 | Q120: =P120*L120 -> 1.1 | R120: =VLOOKUP(F120,'[1]RV1106 board'!$F$7:$R$143,13,0) -> LCSC | X120: R252
A121: 115 | C121: Resistor | D121: 100mW 0Ω 75V Thick Film Resistor ±5% 0603 Chip Resistor - Surface Mount RoHS | E121: Yageo | F121: RC0603JR-070RL | I121: R28 | J121: 1 | K121: 1000 | L121: =J121*K121 -> 1000 | M121: pcs | N121: SMD | P121: =VLOOKUP(F121,'[1]RV1106 board'!$F$7:$P$143,11,0) -> 0.0011 | Q121: =P121*L121 -> 1.1 | R121: =VLOOKUP(F121,'[1]RV1106 board'!$F$7:$R$143,13,0) -> LCSC | X121: 1
A122: 116 | C122: Resistor | D122: 52.3kΩ ±1% 62.5mW 0402 Thick Film Resistor | E122: Yageo | F122: RC0402FR-0745K3L | I122: R12 | J122: 1 | K122: 1000 | L122: =J122*K122 -> 1000 | M122: pcs | N122: SMD | P122: =VLOOKUP(F122,'[1]RV1106 board'!$F$7:$P$143,11,0) -> 0.0010 | Q122: =P122*L122 -> 1 | R122: =VLOOKUP(F122,'[1]RV1106 board'!$F$7:$R$143,13,0) -> LCSC
A123: 117 | C123: Resistor | D123: 45.3kΩ ±1% 62.5mW 0402 Thick Film Resistor | E123: Yageo | F123: RC0402FR-0745K3L | I123: R23 | J123: 1 | K123: 1000 | L123: =J123*K123 -> 1000 | M123: pcs | N123: SMD | P123: =VLOOKUP(F123,'[1]RV1106 board'!$F$7:$P$143,11,0) -> 0.0010 | Q123: =P123*L123 -> 1 | R123: =VLOOKUP(F123,'[1]RV1106 board'!$F$7:$R$143,13,0) -> LCSC
A124: 118 | C124: Resistor | D124: 62.5mW Thick Film Resistor 50V ±100ppm/℃ ±1% 20kΩ 0402 Chip Resistor - Surface Mount ROHS | E124: Yageo | F124: RC0402FR-0720KL | I124: R171 | J124: 1 | K124: 1000 | L124: =J124*K124 -> 1000 | M124: pcs | N124: SMD | P124: =VLOOKUP(F124,'[1]RV1106 board'!$F$7:$P$143,11,0) -> 0.0010 | Q124: =P124*L124 -> 1 | R124: =VLOOKUP(F124,'[1]RV1106 board'!$F$7:$R$143,13,0) -> LCSC
A125: 119 | C125: Resistor | D125: 62.5mW Thick Film Resistor 50V ±100ppm/℃ ±1% 68kΩ 0402 Chip Resistor - Surface Mount ROHS | E125: Yageo | F125: RC0402FR-0768KL | I125: R4 | J125: 1 | K125: 1000 | L125: =J125*K125 -> 1000 | M125: pcs | N125: SMD | P125: =VLOOKUP(F125,'[1]RV1106 board'!$F$7:$P$143,11,0) -> 0.0009 | Q125: =P125*L125 -> 0.9 | R125: =VLOOKUP(F125,'[1]RV1106 board'!$F$7:$R$143,13,0) -> LCSC
A126: 120 | C126: Resistor | D126: 51.1kΩ 62.5mW 50V Thick Film Resistor ±100ppm/℃ ±1% 0402 Chip Resistor - Surface Mount RoHS | E126: Yageo | F126: RC0402FR-0751K1L | I126: R7 | J126: 1 | K126: 1000 | L126: =J126*K126 -> 1000 | M126: pcs | N126: SMD | P126: =VLOOKUP(F126,'[1]RV1106 board'!$F$7:$P$143,11,0) -> 0.0009 | Q126: =P126*L126 -> 0.9 | R126: =VLOOKUP(F126,'[1]RV1106 board'!$F$7:$R$143,13,0) -> LCSC
A127: 121 | C127: Resistor | D127: 12kΩ 62.5mW 50V Thick Film Resistor ±100ppm/℃ ±1% 0402 Chip Resistor - Surface Mount RoHS | E127: Yageo | F127: RC0402FR-0712KL | I127: R8 | J127: 1 | K127: 1000 | L127: =J127*K127 -> 1000 | M127: pcs | N127: SMD | P127: =VLOOKUP(F127,'[1]RV1106 board'!$F$7:$P$143,11,0) -> 0.0009 | Q127: =P127*L127 -> 0.9 | R127: =VLOOKUP(F127,'[1]RV1106 board'!$F$7:$R$143,13,0) -> LCSC
A128: 122 | C128: Resistor | D128: 62.5mW Thick Film Resistor 50V ±100ppm/℃ ±1% 1.91kΩ 0402 Chip Resistor - Surface Mount ROHS | E128: Yageo | F128: RC0402FR-071K91L | I128: R20 | J128: 1 | K128: 1000 | L128: =J128*K128 -> 1000 | M128: pcs | N128: SMD | P128: =VLOOKUP(F128,'[1]RV1106 board'!$F$7:$P$143,11,0) -> 0.0009 | Q128: =P128*L128 -> 0.9 | R128: =VLOOKUP(F128,'[1]RV1106 board'!$F$7:$R$143,13,0) -> LCSC | X128: 1
A129: 123 | C129: Resistor | D129: 62.5mW 1MΩ 50V Thick Film Resistor ±100ppm/℃ ±1% 0402 Chip Resistor - Surface Mount RoHS | E129: Yageo | F129: RC0402FR-071ML | I129: R42 | J129: 1 | K129: 1000 | L129: =J129*K129 -> 1000 | M129: pcs | N129: SMD | P129: =VLOOKUP(F129,'[1]RV1106 board'!$F$7:$P$143,11,0) -> 0.0009 | Q129: =P129*L129 -> 0.9 | R129: =VLOOKUP(F129,'[1]RV1106 board'!$F$7:$R$143,13,0) -> LCSC
A130: 124 | C130: Resistor | D130: 1.2kΩ ±1% 62.5mW 0402 Thick Film Resistor | E130: Yageo | F130: RC0402FR-071K2L | I130: R55 | J130: 1 | K130: 1000 | L130: =J130*K130 -> 1000 | M130: pcs | N130: SMD | P130: =VLOOKUP(F130,'[1]RV1106 board'!$F$7:$P$143,11,0) -> 0.0009 | Q130: =P130*L130 -> 0.9 | R130: =VLOOKUP(F130,'[1]RV1106 board'!$F$7:$R$143,13,0) -> LCSC | X130: Q4,Q41,Q12,Q34,Q16,Q17, Q39, Q19,Q38,Q37,Q21,Q23,Q26,Q27,Q24,Q25,Q28,Q29,Q30,Q31,Q32,Q33
A131: 125 | C131: Resistor | D131: 220Ω 62.5mW 50V Thick Film Resistor ±100ppm/℃ ±1% 0402 Chip Resistor - Surface Mount RoHS | E131: Yageo | F131: RC0402FR-07220RL | I131: R101 | J131: 1 | K131: 1000 | L131: =J131*K131 -> 1000 | M131: pcs | N131: SMD | P131: =VLOOKUP(F131,'[1]RV1106 board'!$F$7:$P$143,11,0) -> 0.0009 | Q131: =P131*L131 -> 0.9 | R131: =VLOOKUP(F131,'[1]RV1106 board'!$F$7:$R$143,13,0) -> LCSC | X131: 1
A132: 126 | C132: Resistor | D132: 62.5mW Thick Film Resistor 50V ±100ppm/℃ ±1% 470Ω 0402 Chip Resistor - Surface Mount ROHS | E132: Yageo | F132: RC0402FR-07470RL | I132: R163 | J132: 1 | K132: 1000 | L132: =J132*K132 -> 1000 | M132: pcs | N132: SMD | P132: =VLOOKUP(F132,'[1]RV1106 board'!$F$7:$P$143,11,0) -> 0.0009 | Q132: =P132*L132 -> 0.9 | R132: =VLOOKUP(F132,'[1]RV1106 board'!$F$7:$R$143,13,0) -> LCSC | X132: 1
A133: 127 | C133: Resistor | D133: 62.5mW Thick Film Resistor 50V ±100ppm/℃ ±1% 3.3kΩ 0402 Chip Resistor - Surface Mount ROHS | E133: Yageo | F133: RC0402FR-073K3L | I133: R203 | J133: 1 | K133: 1000 | L133: =J133*K133 -> 1000 | M133: pcs | N133: SMD | P133: =VLOOKUP(F133,'[1]RV1106 board'!$F$7:$P$143,11,0) -> 0.0009 | Q133: =P133*L133 -> 0.9 | R133: =VLOOKUP(F133,'[1]RV1106 board'!$F$7:$R$143,13,0) -> LCSC | X133: J14, J15, J16
A134: 128 | C134: Resistor | D134: 62.5mW Thick Film Resistor 50V ±100ppm/℃ ±1% 105kΩ 0402 Chip Resistor - Surface Mount ROHS | E134: Yageo | F134: RC0402FR-07105KL | I134: R11 | J134: 1 | K134: 1000 | L134: =J134*K134 -> 1000 | M134: pcs | N134: SMD | P134: =VLOOKUP(F134,'[1]RV1106 board'!$F$7:$P$143,11,0) -> 0.0008 | Q134: =P134*L134 -> 0.8 | R134: =VLOOKUP(F134,'[1]RV1106 board'!$F$7:$R$143,13,0) -> LCSC | X134: 1
A135: 129 | C135: Resistor | D135: 62.5mW Thick Film Resistor 50V ±100ppm/℃ ±1% 34kΩ 0402 Chip Resistor - Surface Mount ROHS | E135: Yageo | F135: RC0402FR-0734KL | I135: R22 | J135: 1 | K135: 1000 | L135: =J135*K135 -> 1000 | M135: pcs | N135: SMD | P135: =VLOOKUP(F135,'[1]RV1106 board'!$F$7:$P$143,11,0) -> 0.0008 | Q135: =P135*L135 -> 0.8 | R135: =VLOOKUP(F135,'[1]RV1106 board'!$F$7:$R$143,13,0) -> LCSC | X135: 1
A136: 130 | C136: Resistor | D136: 8.45kΩ ±1% 62.5mW 0402 Thick Film Resistor | E136: Yageo | F136: RC0402FR-078K45L | I136: R29 | J136: 1 | K136: 1000 | L136: =J136*K136 -> 1000 | M136: pcs | N136: SMD | P136: =VLOOKUP(F136,'[1]RV1106 board'!$F$7:$P$143,11,0) -> 0.0008 | Q136: =P136*L136 -> 0.8 | R136: =VLOOKUP(F136,'[1]RV1106 board'!$F$7:$R$143,13,0) -> LCSC | X136: 1
A137: 131 | C137: Resistor | D137: 57kΩ 62.5mW 50V Thick Film Resistor ±100ppm/℃ ±1% 0402 Chip Resistor - Surface Mount RoHS | E137: Yageo | F137: RC0402FR-07357KL | I137: R239 | J137: 1 | K137: 1000 | L137: =J137*K137 -> 1000 | M137: pcs | N137: SMD | P137: =VLOOKUP(F137,'[1]RV1106 board'!$F$7:$P$143,11,0) -> 0.0008 | Q137: =P137*L137 -> 0.8 | R137: =VLOOKUP(F137,'[1]RV1106 board'!$F$7:$R$143,13,0) -> LCSC
A138: 132 | C138: Capacitor | D138: 680pF ±10% 50V Ceramic Capacitor X7R 0402 | E138: FOJAN, SAMWHA | F138: FCC0402B681K500AT | I138: C11 | J138: 1 | K138: 1000 | L138: =J138*K138 -> 1000 | M138: pcs | N138: SMD | P138: =VLOOKUP(F138,'[1]RV1106 board'!$F$7:$P$143,11,0) -> 0.0007 | Q138: =P138*L138 -> 0.7 | R138: =VLOOKUP(F138,'[1]RV1106 board'!$F$7:$R$143,13,0) -> LCSC
A139: 133 | C139: Resistor | D139: 62.5mW Thick Film Resistor 50V ±100ppm/℃ ±1% 84.5kΩ 0402 Chip Resistor - Surface Mount ROHS | E139: Yageo | F139: RC0402FR-0784K5L | I139: R14 | J139: 1 | K139: 1000 | L139: =J139*K139 -> 1000 | M139: pcs | N139: SMD | P139: =VLOOKUP(F139,'[1]RV1106 board'!$F$7:$P$143,11,0) -> 0.0006 | Q139: =P139*L139 -> 0.6 | R139: =VLOOKUP(F139,'[1]RV1106 board'!$F$7:$R$143,13,0) -> LCSC | X139: 1
A140: 134 | C140: Resistor | D140: 62.5mW Thick Film Resistor 50V ±100ppm/℃ ±1% 21.5kΩ 0402 Chip Resistor - Surface Mount ROHS | E140: Yageo | F140: RC0402FR-0721K5L | I140: R19 | J140: 1 | K140: 1000 | L140: =J140*K140 -> 1000 | M140: pcs | N140: SMD | P140: =VLOOKUP(F140,'[1]RV1106 board'!$F$7:$P$143,11,0) -> 0.0006 | Q140: =P140*L140 -> 0.6 | R140: =VLOOKUP(F140,'[1]RV1106 board'!$F$7:$R$143,13,0) -> LCSC
A141: 135 | C141: Stencil | D141: Stencil for Cambox RV1106 | J141: 1 | K141: 1 | L141: =J141*K141 -> 1 | M141: pcs | N141: ASM | P141: 80 | Q141: =P141*L141 -> 80
E142: TOTAL (USD): | Q142: =SUM(Q7:Q141) -> 47939.1
E143: EXW Price / Board (USD): | Q143: =Q142/1000 -> 47.9391
E144: EXW Price / Board (VND):

Sheet GX Board
D1: =UPPER("Bill of Materials") -> BILL OF MATERIALS | J1: Rev:
D2: Camera_box_gx | J2: Production QTY | R2: BOM Export Date: 04/05/26 16:31:42
A3: Customer: | C3: Aithings | D3: HW version: | E3: 5.0 | G3: Checked by: | J3: Date created: | R3: Website：https://www,lcsc,com/bom
A4: Board code: | C4: Camera_box_gx | D4: Prepared by: | E4: Ducdv | G4: Approved by: | J4: 26/03/2026
E5: Mã Hàng Hóa Ưu Tiên Mua | G5: Mã Hàng Hóa Tham Khảo
A6: STT | B6: Internal Code | C6: Category | D6: Description | E6: Manufacturer | F6: Partnumber | G6: Manufacturer 2 | H6: Manufacturer's Part Number 2 | I6: Designator | J6: QTY / Set | K6: Production quantity | L6: Total Quantity | M6: Unit | N6: Mounting type | O6: Note | P6: EXW Price (USD) | Q6: Total EXW Price (USD) | R6: Supplier | S6: Việc cần làm
A7: =ROW(A7)-ROW($A$6) -> 1 | C7: Capacitor | D7: CAP CER 1UF 50V X5R 0603 | E7: FH | F7: 0603X105M500NT | G7: Samsung Electro-Mechanics | H7: CL10A105KB8NNNC | I7: C1, C2, C3, C4 | J7: 4 | K7: 1000 | L7: =J7*K7 -> 4000 | N7: SMD | P7: =VLOOKUP(F7,'[1]GX Board'!$F$7:$P$18,11,0) -> 0.0046 | Q7: =P7*L7 -> 18.4 | R7: LCSC
A8: =ROW(A8)-ROW($A$6) -> 2 | C8: Connector | D8: 2x2P 4P Micro-Fit(MX 3,0) 3mm 2 2 3mm Direct Insert Plugin,P=3mm Wire To Board Connector ROHS | E8: BOOMELE(Boom Precision Elec) | F8: 3.0-2*2A | I8: J7, J9, J10, J11, J12, J13 | J8: 6 | K8: 1000 | L8: =J8*K8 -> 6000 | N8: SMD | P8: =VLOOKUP(F8,'[1]GX Board'!$F$7:$P$18,11,0) -> 0.0445 | Q8: =P8*L8 -> 267 | R8: LCSC
A9: =ROW(A9)-ROW($A$6) -> 3 | C9: Connector | D9: 2x6P 12P Gold Brass -40℃~+105℃ Pin Header Black 2mm 2mm 250V 3A 2 2mm SMD,P=2mm Headers, Male Pins ROHS | E9: XKB Connection | F9: X4621WRS-2x06I-C40D64 | G9: XKB Connection | H9: X4621WRS-2x03I-C40D64 | I9: J8, J14, J15 | J9: 3 | K9: 1000 | L9: 3000 | N9: SMD | P9: =VLOOKUP(F9,'[1]GX Board'!$F$7:$P$18,11,0) -> 0.1856 | Q9: =P9*L9 -> 556.8 | R9: LCSC
A10: =ROW(A10)-ROW($A$6) -> 4 | C10: MOSFET | D10: SOT-23-3 MOSFETs P-Chanel ROHS | E10: TECH PUBLIC | F10: SI2333CDS | I10: Q1, Q2, Q5, Q6 | J10: 4 | K10: 1000 | L10: 4000 | N10: SMD | P10: =VLOOKUP(F10,'[1]GX Board'!$F$7:$P$18,11,0) -> 0.058 | Q10: =P10*L10 -> 232 | R10: LCSC
A11: =ROW(A11)-ROW($A$6) -> 5 | C11: Resistor | D11: 62,5mW Thick Film Resistor 50V ±100ppm/℃ ±1% 10kΩ 0402 Chip Resistor - Surface Mount ROHS | E11: FOJAN | F11: FRC0402F1002TS | G11: Yageo | H11: RC0402FR-0710KL | I11: R1, R2, R7, R8 | J11: 4 | K11: 1000 | L11: 4000 | N11: SMD | P11: =VLOOKUP(F11,'[1]GX Board'!$F$7:$P$18,11,0) -> 0.0004 | Q11: =P11*L11 -> 1.6 | R11: LCSC
A12: =ROW(A12)-ROW($A$6) -> 6 | C12: Resistor | D12: 62,5mW Thick Film Resistors 50V ±100ppm/℃ ±1% 4,7kΩ 0402 Chip Resistor - Surface Mount ROHS | E12: FOJAN | F12: FRC0402F4701TS | G12: Yageo | H12: RC0402FR-074K7L | I12: R3, R4, R9, R10 | J12: 4 | K12: 1000 | L12: 4000 | N12: SMD | P12: =VLOOKUP(F12,'[1]GX Board'!$F$7:$P$18,11,0) -> 0.0004 | Q12: =P12*L12 -> 1.6 | R12: LCSC
A13: =ROW(A13)-ROW($A$6) -> 7 | C13: Resistor | D13: 62,5mW Thick Film Resistor 50V ±100ppm/℃ ±1% 47kΩ 0402 Chip Resistor - Surface Mount ROHS | E13: FOJAN | F13: FRC0402F4702TS | G13: Yageo | H13: RC0402FR-0747KL | I13: R5, R6, R11, R12 | J13: 4 | K13: 1000 | L13: 4000 | N13: SMD | P13: =VLOOKUP(F13,'[1]GX Board'!$F$7:$P$18,11,0) -> 0.0004 | Q13: =P13*L13 -> 1.6 | R13: LCSC
A14: =ROW(A14)-ROW($A$6) -> 8 | C14: Transistor | D14: TRANS NPN 60V 0,5A SOT23 | E14: TECH PUBLIC | F14: TPMMBTA05 | G14: ON Semiconductor | H14: MMBTA05LT1G | I14: Q3, Q4, Q7, Q8 | J14: 4 | K14: 1000 | L14: 4000 | N14: SMD | P14: =VLOOKUP(F14,'[1]GX Board'!$F$7:$P$18,11,0) -> 0.017 | Q14: =P14*L14 -> 68 | R14: LCSC
A15: =ROW(A15)-ROW($A$6) -> 9 | C15: Connector | D15: Giắc GX12-2P 2 Chân (Đực) | E15: chxunda | F15: XD-GX12-2P-F | G15: LKTC | H15: GX12-2P | I15: J1 | J15: 1 | K15: 1000 | L15: 1000 | N15: TH | P15: =VLOOKUP(F15,'[1]GX Board'!$F$7:$P$18,11,0) -> 0.3727 | Q15: =P15*L15 -> 372.7 | R15: LCSC
A16: =ROW(A16)-ROW($A$6) -> 10 | C16: Connector | D16: Giắc GX12-4P 12mm 4 Chân (Đực) | E16: chxunda | F16: XD-GX12-4P-M | G16: LKTC | H16: GX12-4P | I16: J2, J3, J5, J6 | J16: 4 | K16: 1000 | L16: 4000 | N16: TH | P16: =VLOOKUP(F16,'[1]GX Board'!$F$7:$P$18,11,0) -> 0.3896470588 | Q16: =P16*L16 -> 1558.588235 | R16: LCSC
A17: =ROW(A17)-ROW($A$6) -> 11 | C17: PCB | D17: PCB, 2 layer, 113,94 mm* 23,58 mm, PCB Thickness: 1,6mm, Gerber_Camerabox-gx_2025-11-24_Y2413 | E17: JLC | F17: Y2413 | J17: 1 | K17: 1000 | L17: 1000 | N17: ASM | P17: =VLOOKUP(F17,'[1]GX Board'!$F$7:$P$18,11,0) -> 0.3 | Q17: =P17*L17 -> 300 | R17: LCSC
A18: =ROW(A18)-ROW($A$6) -> 12 | C18: Stencil | J18: 1 | K18: 1 | L18: 1 | N18: ASM | P18: 80 | Q18: =P18*L18 -> 80 | R18: LCSC
E19: TOTAL (USD): | Q19: =SUM(Q7:Q18) -> 3458.288235
E20: EXW Price / Board (USD): | Q20: =Q19/1000 -> 3.458288235
E21: EXW Price / Board (VND):

Sheet Vat_tu_phu
D1: =UPPER("Bill of Materials") -> BILL OF MATERIALS | J1: Rev:
D2: Camera_box_vật tư phụ | J2: Production QTY | P2: Nguồn khác
A3: Customer: | C3: Aithings | D3: HW version: | E3: 5.0 | G3: Checked by: | J3: Date created:
A4: Board code: | C4: Vật tư phụ | D4: Prepared by: | E4: Ducdv | G4: Approved by: | J4: 26/03/2026
A5: STT | B5: Internal Code | C5: Category | D5: Description | E5: Manufacture | F5: Partnumber | G5: Manufacturer 2 | H5: Manufacturer's Part Number 2 | I5: Designator | J5: Quantity/kit | K5: Board | L5: Total | M5: Unit | N5: Mounting type | O5: Note | P5: Order Qty. | Q5: Unit Price(VND) | R5: Ext,Price(VND) | S5: Nguồn
A6: =ROW(A6)-ROW($A$5) -> 1 | C6: Battery | D6: Pin Lithium | E6: Shoppe: AM Linh Kiện | J6: 1 | K6: 10 | L6: =J6*K6 -> 10 | N6: ASM | P6: 10 | Q6: 50000 | R6: =Q6*P6 -> 500000 | S6: https://shopee.vn/product/472471748/27209001295?gads_t_sig=gqRjZGVrxHCFomtpsTE0MjUxOnRzc19zZGtfa2V5omt20QABpGFsZ2_SAAAAZKNkZWvAomN0xEAAAAAMRoz0ZUjQw0QlRa--FjB0AKnHQPF7xv4DyGj9-GQwqn4zSdB6gztmw7ebmtsZs9FPJxlVqctc57WUE3IRqmNpcGhlcnRleHTEbgAAAAzOmWiKQhTD73oy3pMTD74YwXKLY4RmTmx_PECgQdqrSMko9Yj-LV50FldCrrJu5kPHupxjQruBx93-Rht53dteckDz3PQ9R9Ffxg1CnUg0Q4ADNZT7dVO_ek6XNMjV98hEJY0-rMFUz31c&gad_source=1&gad_campaignid=22506035722&gbraid=0AAAAADPpQE6U2mKiUDG5SpqIjApCVJLCa&gclid=Cj0KCQjwh-HPBhCIARIsAC0p3ccvrmVkDpuOBH77KWqu0VKbvpR57SbJKexkpAHzM0uqhK1QMQfLJz4aAmzGEALw_wcB
A7: 2 | C7: BOX | D7: Vỏ hộp | E7: Kadotech | F7: KDT-2526 | J7: 1 | K7: 10 | L7: 10 | N7: ASM | P7: - | R7: - | S7: Chưa tìm được nguồn mua phù hợp
A8: 3 | C8: Connector | D8: Cáp RF Đầu SMA Cái Nối 1,13Ipex Dài 10cm | E8: TGIC | F8: 1,13Ipex | J8: 2 | K8: 10 | L8: 20 | N8: ASM | P8: 20 | Q8: 11970 | R8: =Q8*P8 -> 239400 | S8: https://www.thegioiic.com/cap-rf-dau-sma-cai-noi-1-13ipex-dai-10cm
A9: 4 | C9: Product | D9: Miếng dẫn nhiệt thermal pad 5W/mK cho vga, chipset, ic dày 0,5, 1, 1,5, 2, 2,5, 3, 5mm ,kienstore358 | E9: Shopee kienstore358 | F9: 100x100x2mm | J9: 1 | K9: 5 | L9: 5 | N9: ASM | O9: Tản nhiệt SOM | P9: 3 | Q9: 46500 | R9: =Q9*P9 -> 139500 | S9: https://shopee.vn/product/16195091/3632842107?gads_t_sig=gqRjZGVrxHCFomtpsTE0MjUxOnRzc19zZGtfa2V5omt20QABpGFsZ2_SAAAAZKNkZWvAomN0xEAAAAAMRoz0ZUjQw0QlRa--FjB0AKnHQPF7xv4DyGj9-GQwqn4zSdB6gztmw7ebmtsZs9FPJxlVqctc57WUE3IRqmNpcGhlcnRleHTEagAAAAxLgiQivYZgW5foBPUBW12V8NHF09EY7qvmQOS38IA2e0CYjRekDsolqv8LMehX3QA7bJdvA0ZGP-sAncSvKGxwbMeXwQx2NGhEZXdYRNYdiWPk82HQPWPYfVW33Sbu0RV7orG3wGk&gad_source=1&gad_campaignid=22496000355&gbraid=0AAAAADPpQE6bBolz_JwwPGJCnXnPJllEZ&gclid=Cj0KCQjwh-HPBhCIARIsAC0p3ccJjJk5KYxemJ07EzcLDLZYWXACEOCjEViEVKBJMcyI0qedliT716YaAkxiEALw_wcB
A10: 5 | C10: Quạt | D10: Quạt Tản Nhiệt Mini 2510 – Quạt 2.5cm 25x25x10mm 5V / 12V DC – Gió Mạnh, Nhỏ Gọn, Ít Tiếng Ồn | E10: SHOPPE | F10: Mini Eibbkg 5V | J10: 1 | K10: 10 | L10: 10 | N10: ASM | P10: 10 | Q10: 35000 | R10: =Q10*P10 -> 350000 | S10: https://shopee.vn/Qu%EF%BF%BD%E1%BA%A1t-T%E1%BA%A3n-Nhi%E1%BB%87t-Mini-2510-%E2%80%93-Qu%E1%BA%A1t-2.5cm-25x25x10mm-5V-12V-DC-%E2%80%93-Gi%C3%B3-M%E1%BA%A1nh-Nh%E1%BB%8F-G%E1%BB%8Dn-%C3%8Dt-Ti%E1%BA%BFng-%E1%BB%92n-i.983524123.51300841631?extraParams=%7B%22display_model_id%22%3A445075556373%2C%22model_selection_logic%22%3A3%7D
A11: 6 | C11: Screw | D11: 10 cái M3 M4 M5 Bulong lục giác chìm đầu bằng đen thép mạ cấp bền 10,9 M3 M4 M5 | E11: Shopee Khôi Fasten | F11: M3x16mm | J11: 4 | K11: 10 | L11: 40 | N11: ASM | O11: Vít cho quạt | P11: 50 | Q11: =35000/50 -> 700 | R11: =Q11*P11 -> 35000 | S11: https://shopee.vn/50-c%C3%A1i-M3-M4-M5-Bulong-l%E1%BB%A5c-gi%C3%A1c-ch%C3%ACm-%C4%91%E1%BA%A7u-b%E1%BA%B1ng-%C4%91en-th%C3%A9p-m%E1%BA%A1-c%E1%BA%A5p-b%E1%BB%81n-10.9-i.39096692.12657476490
A12: 7 | C12: Screw | D12: Set 50, 20 Tán Dẹp Ecu Inox 304, thép thôi, thép mạ Cho ốc M3, M4, M5, M6, M8 Set 10 con đai ốc inox loại tốt | E12: Linh kiện điện tử SMD | F12: M3 Inox304 | J12: 4 | K12: 10 | L12: 40 | N12: ASM | O12: Bulong hàn cho quạt | P12: 50 | Q12: 1600 | R12: =Q12*P12 -> 80000 | S12: https://shopee.vn/product/134796651/18762050701?gads_t_sig=gqRjZGVrxHCFomtpsTE0MjUxOnRzc19zZGtfa2V5omt20QABpGFsZ2_SAAAAZKNkZWvAomN0xEAAAAAMRoz0ZUjQw0QlRa--FjB0AKnHQPF7xv4DyGj9-GQwqn4zSdB6gztmw7ebmtsZs9FPJxlVqctc57WUE3IRqmNpcGhlcnRleHTEbgAAAAyjVrs0gr8UnuryeetI3FX5Y16AmL_mbFh-BhzhNYSPCYip1w6WS6FoDljuqhTt2G5b1K_wR9XnDLR9WZzE5wC81X4yviPtEfAPixm0EH_uhDsW8r7vXboffenME-Yw3AOA9ysYlFQUXDIh&gad_source=1&gad_campaignid=22496000355&gbraid=0AAAAADPpQE6bBolz_JwwPGJCnXnPJllEZ&gclid=Cj0KCQjwh-HPBhCIARIsAC0p3cfnu3W1ldu4Fhpn7GV8qDwtxFhI1ARvfrlSmeh8cJ9jHKLEj-Gj6C4aAurrEALw_wcB
A13: 8 | C13: Screw | D13: M1,2 M1,4 M1,6 M2 M2,5 M3 M4 M5 M6 Thép Carbon Kẽm Đen CM Cross Phillips Siêu Mỏng Siêu Thấp Đầu Phẳng Vít Bu Lông | E13: Shopee huiruixin,vn | F13: M1,4x2,5mm | J13: 1 | K13: 10 | L13: 10 | N13: ASM | O13: Vít cho SOM | P13: 500 | R13: 52000 | S13: https://shopee.vn/M1.2-M1.4-M1.6-M2-M2.5-M3-M4-M5-M6-Th%C3%A9p-Carbon-K%E1%BA%BDm-%C4%90en-CM-Cross-Phillips-Si%C3%AAu-M%E1%BB%8Fng-Si%C3%AAu-Th%E1%BA%A5p-%C4%90%E1%BA%A7u-Ph%E1%BA%B3ng-V%C3%ADt-Bu-L%C3%B4ng-i.889466159.28555773016?extraParams=%7B%22display_model_id%22%3A246227873566%2C%22model_selection_logic%22%3A3%7D
A14: 9 | C14: Screw | D14: Bộ 10 Long đen/ vòng đệm các kích thước.M1.6 M2 M2.5 M3 M4 M6 M8 M10 M12 M14 | E14: Linh kiện điện tử SMD | F14: M3 | J14: 4 | K14: 10 | L14: 40 | N14: ASM | O14: Vênh cho quạt | P14: 40 | R14: 20000 | S14: https://shopee.vn/product/51517981/5019789812?gads_t_sig=gqRjZGVrxHCFomtpsTE0MjUxOnRzc19zZGtfa2V5omt20QABpGFsZ2_SAAAAZKNkZWvAomN0xEAAAAAMRoz0ZUjQw0QlRa--FjB0AKnHQPF7xv4DyGj9-GQwqn4zSdB6gztmw7ebmtsZs9FPJxlVqctc57WUE3IRqmNpcGhlcnRleHTEagAAAAyUnapXmxqrtAARC2f2cAyv2rWo4S6nSmJarRu2hF963X_eLnWICFmDLSksVdDtVkHlcvDes5vsZPttikVHhlfJAtwmGUBR9F0tm60UZ4rTVfZJAH2dWM_Bkpq7YSLuwi3vIB1wnUw&gad_source=1&gad_campaignid=22651004374&gbraid=0AAAAADPpQE6hA2b-beNyuq8-eNHxmjDX-&gclid=Cj0KCQjwh-HPBhCIARIsAC0p3ceXFYtQJC6HCGelD_ac7vc2P3AYvNRl1mFwCvvVQZLvehYiAS0tv8saAhFLEALw_wcB
A15: 10 | C15: Connector | D15: Giắc GX12-2P 2 Chân (Cái) Đấu Dây Test | E15: LKTC | F15: GX12-2P (Cái) | J15: 1 | K15: 10 | L15: 10 | N15: ASM | P15: 10 | Q15: 6200 | R15: =Q15*P15 -> 62000 | S15: https://www.thegioiic.com/gx12-2p-dau-noi-tron-cai-2-chan-thang-hang-3a-125v
D16: TỔNG | R16: =SUM(R6:R15) -> 1477900 | T16: VND

Sheet Chi phí
A1: STT | B1: Loại | C1: Số lượng | D1: Đơn giá | E1: Đơn vị | F1: Quy đổi(VND) | G1: Tổng tiền (VND) | H1: Ghi chú
A2: 1 | B2: RV1106 Board | C2: 1 | D2: =RV1106_Board!#REF! ->  | E2: USD | F2: =D2*26337 ->  | G2: =F2+F3+F4 -> 
A3: 2 | B3: Vat_tu_phu | C3: 1 | D3: =Vat_tu_phu!R16 -> 1477900 | E3: VND | F3: =D3 -> 1477900
A4: 3 | B4: GX_Board | C4: 1 | D4: ='GX Board'!$R$19 -> 0 | E4: USD | F4: =D4*26337 -> 0
